Departmental Family,Entity,Date,Expense Type,Expense Area,Supplier,Supplier Type,Expenditure Description,Transaction Number, Amount 
Department for Education,DEPARTMENT FOR EDUCATION,03/09/2012,Programme costs,Academies Delivery Group,PKF UK LLP,Commercial,Funding to deliver policies (excluding consultancy) paid to third parties via a service delivery contract,4000093988,"102,120"
Department for Education,TEACHING AGENCY,03/09/2012,Advertising and Media,Supply and Recruitment Division,M4C,Commercial," Media monitoring services including videotaping news, TV and radio programmes",4000093978,"88,994"
Department for Education,DEPARTMENT FOR EDUCATION,03/09/2012,Professional Services Other,Academies Delivery Group,VEREDUS C/O CAPITA RESOURCING LTD,Commercial,"Fees / expenses of professionals from the private sector, for example to implement advice or changes",4000094026,"88,388"
Department for Education,DEPARTMENT FOR EDUCATION,03/09/2012,ICT Commodities,"Strategic Analysis, Research and Policy Impact Group",ATKINS LTD,Commercial,IT Services,4000093928,"81,087"
Department for Education,DEPARTMENT FOR EDUCATION,03/09/2012,Programme costs,School Standards Group,UNIVERSITY OF BRIGHTON,Public Sector,Funding to deliver policies (excluding consultancy) paid to third parties via a service delivery contract,4000094023,"44,612"
Department for Education,EDUCATION FUNDING AGENCY,03/09/2012,Programme Costs,Free School Technical Advice,TURNER & TOWNSEND,Commercial,Funding to external organisations to deliver policies (excluding consultancy),27298,"449,917"
Department for Education,EDUCATION FUNDING AGENCY,03/09/2012,Grants,Converter Academies,The Hawthorne's Free,Public Sector,"Grants paid to organisations including agencies, arms length bodies and educational establishments",PAYCHAPSAUTO PAYCHAPSAUTO 67,"286,764"
Department for Education,EDUCATION FUNDING AGENCY,03/09/2012,Programme Costs,Free School Technical Advice,JACOBS,Commercial,Funding to external organisations to deliver policies (excluding consultancy),27294,"110,495"
Department for Education,EDUCATION FUNDING AGENCY,03/09/2012,Grants,Converter Academies,The Hawthorne's Free,Public Sector,"Grants paid to organisations including agencies, arms length bodies and educational establishments",PAYCHAPSAUTO PAYCHAPSAUTO 67,"108,000"
Department for Education,EDUCATION FUNDING AGENCY,03/09/2012,Programme Costs,University Technology Colleges,MOTT MACDONALD,Commercial,Funding to external organisations to deliver policies (excluding consultancy),27284,"94,276"
Department for Education,EDUCATION FUNDING AGENCY,03/09/2012,Programme Costs,Free School Property Advice,JONES LANG LASALLE,Public Sector,Funding to external organisations to deliver policies (excluding consultancy),27282,"85,591"
Department for Education,EDUCATION FUNDING AGENCY,03/09/2012,Programme Costs,Free School Property Advice,DTZ  SHARED SERVICE CENTRE,Commercial,Funding to external organisations to deliver policies (excluding consultancy),27286,"64,185"
Department for Education,EDUCATION FUNDING AGENCY,03/09/2012,Programme Costs,Programme Team,TRIBAL GROUP PLC,Commercial,Funding to external organisations to deliver policies (excluding consultancy),27296,"36,433"
Department for Education,EDUCATION FUNDING AGENCY,03/09/2012,Professional Services Consultancy and Contingent Labour,Programme Team,FAITHFUL & GOULD,Commercial,Advisory services within programme and project management services,27272,"34,692"
Department for Education,EDUCATION FUNDING AGENCY,03/09/2012,Programme Costs,Free School Property Advice,JONES LANG LASALLE,Public Sector,Funding to external organisations to deliver policies (excluding consultancy),27282,"31,860"
Department for Education,EDUCATION FUNDING AGENCY,03/09/2012,Programme Costs,Programme Team,GARDINER & THEOBALD LLP,Commercial,Funding to external organisations to deliver policies (excluding consultancy),27274,"26,748"
Department for Education,EDUCATION FUNDING AGENCY,03/09/2012,Grants,Converter Academies,The Hawthorne's Free,Public Sector,"Grants paid to organisations including agencies, arms length bodies and educational establishments",PAYCHAPSAUTO PAYCHAPSAUTO 67,"14,399"
Department for Education,EDUCATION FUNDING AGENCY,03/09/2012,Grants,Converter Academies,The Hawthorne's Free,Public Sector,"Grants paid to organisations including agencies, arms length bodies and educational establishments",PAYCHAPSAUTO PAYCHAPSAUTO 67,"12,683"
Department for Education,EDUCATION FUNDING AGENCY,03/09/2012,Programme Costs,Free School Technical Advice,DTZ  SHARED SERVICE CENTRE,Commercial,Funding to external organisations to deliver policies (excluding consultancy),27286,"11,805"
Department for Education,EDUCATION FUNDING AGENCY,03/09/2012,Programme Costs,University Technology Colleges,JONES LANG LASALLE,Public Sector,Funding to external organisations to deliver policies (excluding consultancy),27282,"9,600"
Department for Education,EDUCATION FUNDING AGENCY,03/09/2012,Grants,Free School Legal Advice,JONES LANG LASALLE,Public Sector,"Capital grants paid to organisations including agencies, arms length bodies and educational establishments",27282,"6,000"
Department for Education,EDUCATION FUNDING AGENCY,03/09/2012,Programme Costs,Free School Property Advice,DTZ  SHARED SERVICE CENTRE,Commercial,Funding to external organisations to deliver policies (excluding consultancy),27286,"1,751"
Department for Education,EDUCATION FUNDING AGENCY,03/09/2012,Programme Costs,Free School Property Advice,DTZ  SHARED SERVICE CENTRE,Commercial,Funding to external organisations to deliver policies (excluding consultancy),27286,"1,440"
Department for Education,EDUCATION FUNDING AGENCY,03/09/2012,Professional Services Other,Free School Technical Advice,DTZ  SHARED SERVICE CENTRE,Commercial,Legal services provided externally (excluding Treasury Solicitor) ,27286,900
Department for Education,TEACHERS PENSION SCHEME,04/09/2012,Funding to Pay Teachers' Pensions,Workforce Group,CAPITA TP NATWEST,Commercial,Funding to pay Teachers' Pensions,1001227,"639,733,692"
Department for Education,TEACHING AGENCY,04/09/2012,Grants,Funding Allocation and Performance Division,YORK ST JOHN UNIVERSITY,Public Sector,Grants to third sector organisations / not for profit organisations,1000723,"237,762"
Department for Education,DEPARTMENT FOR EDUCATION,04/09/2012,Grants,Families Group,CAFCASS,Central Government,Current grant funding to arms length bodies for DfE's contribution to fund activity,2000647,"10,499,084"
Department for Education,DEPARTMENT FOR EDUCATION,04/09/2012,Facilities,Chief Information Officer Group,WESTMINSTER CITY COUNCIL,Public Sector,Business rates,4000094169,"437,872"
Department for Education,DEPARTMENT FOR EDUCATION,04/09/2012,Facilities,Chief Information Officer Group,MCD COVENTRY LTD,Commercial,Rent,1000720,"363,390"
Department for Education,DEPARTMENT FOR EDUCATION,04/09/2012,Grants,School Standards Group,NATIONAL SOCIETY C OF E,VCS,Grants to third sector organisations / not for profit organisations,4000094130,"203,625"
Department for Education,DEPARTMENT FOR EDUCATION,04/09/2012,Grants,Supporting Children and Young People Group,GROUNDWORK UK,VCS,Grants to third sector organisations / not for profit organisations,4000094107,"124,824"
Department for Education,DEPARTMENT FOR EDUCATION,04/09/2012,Programme costs,School Standards Group,UNIVERSITY OF WINCHESTER,Public Sector,Funding to deliver policies (excluding consultancy) paid to third parties via a service delivery contract,4000094166,"114,017"
Department for Education,TEACHERS PENSION SCHEME,04/09/2012,Funding to Pay Teachers' Pensions,Workforce Group,CAPITA TP HSBC,Commercial,Funding to pay Teachers' Pensions,1001226,"84,729"
Department for Education,DEPARTMENT FOR EDUCATION,04/09/2012,Facilities,Chief Information Officer Group,COVENTRY CITY COUNCIL,Public Sector,Business rates,4000094095,"67,302"
Department for Education,DEPARTMENT FOR EDUCATION,04/09/2012,Grants,Free School Group,WEST NEWCASTLE ACADEMY,Public Sector,"Grants paid to organisations including agencies, arms length bodies and educational establishments",1000722,"66,000"
Department for Education,DEPARTMENT FOR EDUCATION,04/09/2012,Grants,Children Young People and Families Safeguarding Group,THE COLLEGE OF SOCIAL WORK,VCS,Grants to third sector organisations / not for profit organisations,4000094162,"66,000"
Department for Education,DEPARTMENT FOR EDUCATION,04/09/2012,Facilities,Chief Information Officer Group,SHEFFIELD CITY COUNCIL,Public Sector,Business rates,4000094158,"59,540"
Department for Education,DEPARTMENT FOR EDUCATION,04/09/2012,Industrial Services,Families Group,UNIVERSITY OF WARWICK,Public Sector,Research and evaluation activities including contracted out data collation / gathering exercises when there is no analysis or recommendation,4000094165,"57,100"
Department for Education,DEPARTMENT FOR EDUCATION,04/09/2012,Grants,Families Group,LEEDS CITY COUNCIL,Public Sector,Grants to local authorities within AEF/AEG (aggregate external funding/aggregate exchequer grant),4000094122,"50,000"
Department for Education,DEPARTMENT FOR EDUCATION,04/09/2012,Facilities,Chief Information Officer Group,HALTON BOROUGH COUNCIL,Public Sector,Business rates,4000094109,"39,239"
Department for Education,DEPARTMENT FOR EDUCATION,04/09/2012,Grants,Children Young People and Families Early Years Extended Schools and Special Needs Group,DAYCARE TRUST,VCS,Grants to third sector organisations / not for profit organisations,4000094101,"38,415"
Department for Education,DEPARTMENT FOR EDUCATION,04/09/2012,Professional Services Consultancy and Contingent Labour,System Reform Group,OWEN EDUCATION LTD,Commercial,"Fees / expenses of professionals from the private sector such as auditors, accountants, lawyers, etc. engaged to provide advice or opinion on how to affect something",4000094133,"35,805"
Department for Education,DEPARTMENT FOR EDUCATION,04/09/2012,Facilities,Chief Information Officer Group,MANCHESTER CITY COUNCIL,Public Sector,Business rates,4000094127,"29,604"
Department for Education,DEPARTMENT FOR EDUCATION,04/09/2012,Grants,Supporting Children and Young People Group,BOLTON LADS & GIRLS CLUB,VCS,Grants to third sector organisations / not for profit organisations,4000094086,"28,160"
Department for Education,DEPARTMENT FOR EDUCATION,04/09/2012,Grants,Free School Group,ST MARYS CE PRIMARY ACADEMY,Public Sector,"Grants paid to organisations including agencies, arms length bodies and educational establishments",1000721,"25,000"
Department for Education,DEPARTMENT FOR EDUCATION,04/09/2012,Grants,Academies Delivery Group,ABBOTS HALL PRIMARY SCHOOL,Public Sector,"Grants paid to organisations including agencies, arms length bodies and educational establishments",4000094079,"25,000"
Department for Education,DEPARTMENT FOR EDUCATION,04/09/2012,Grants,Academies Delivery Group,CROSBY ON EDEN CE PRIMARY SCHOOL,Public Sector,"Grants paid to organisations including agencies, arms length bodies and educational establishments",4000094096,"25,000"
Department for Education,DEPARTMENT FOR EDUCATION,04/09/2012,Grants,Academies Delivery Group,CULLODEN PRIMARY SCHOOL,Public Sector,"Grants paid to organisations including agencies, arms length bodies and educational establishments",4000094097,"25,000"
Department for Education,DEPARTMENT FOR EDUCATION,04/09/2012,Grants,Academies Delivery Group,ELVEDEN CE VA PRIMARY SCHOOL,Public Sector,"Grants paid to organisations including agencies, arms length bodies and educational establishments",4000094105,"25,000"
Department for Education,DEPARTMENT FOR EDUCATION,04/09/2012,Grants,Academies Delivery Group,MEASHAM CE PRIMARY SCHOOL,Public Sector,"Grants paid to organisations including agencies, arms length bodies and educational establishments",4000094128,"25,000"
Department for Education,DEPARTMENT FOR EDUCATION,04/09/2012,Grants,Academies Delivery Group,THE THOMAS COWLEY HIGH SCHOOL,Public Sector,"Grants paid to organisations including agencies, arms length bodies and educational establishments",4000094164,"25,000"
Department for Education,DEPARTMENT FOR EDUCATION,04/09/2012,Grants,Academies Delivery Group,VALE OF EVESHAM SCHOOL,Public Sector,"Grants paid to organisations including agencies, arms length bodies and educational establishments",4000094167,"25,000"
Department for Education,DEPARTMENT FOR EDUCATION,04/09/2012,Facilities,Chief Information Officer Group,MCD COVENTRY LTD,Commercial,Rent,1000720,"3,600"
Department for Education,TEACHING AGENCY,04/09/2012,Grants,Funding Allocation and Performance Division,YORK ST JOHN UNIVERSITY,Public Sector,Grants to third sector organisations / not for profit organisations,1000723,585
Department for Education,EDUCATION FUNDING AGENCY,04/09/2012,Grants,Converter Academies,Southfields Academy,Public Sector,"Grants paid to organisations including agencies, arms length bodies and educational establishments",PAYBACSAUTO 34559,"1,219,790"
Department for Education,EDUCATION FUNDING AGENCY,04/09/2012,Grants,Converter Academies,Tollbar Multi Academy Trust,Public Sector,"Grants paid to organisations including agencies, arms length bodies and educational establishments",PAYBACSAUTO 34588,"1,024,652"
Department for Education,EDUCATION FUNDING AGENCY,04/09/2012,Grants,Converter Academies,LYMM HIGH SCHOOL,Public Sector,"Grants paid to organisations including agencies, arms length bodies and educational establishments",PAYBACSAUTO 34517,"1,018,461"
Department for Education,EDUCATION FUNDING AGENCY,04/09/2012,Grants,Converter Academies,Chingford Foundation School,Public Sector,"Grants paid to organisations including agencies, arms length bodies and educational establishments",PAYBACSAUTO 34452,"967,774"
Department for Education,EDUCATION FUNDING AGENCY,04/09/2012,Grants,Converter Secondary Schools In-year openers,Hertswood Academy,Public Sector,"Grants paid to organisations including agencies, arms length bodies and educational establishments",PAYBACSAUTO 34499,"910,457"
Department for Education,EDUCATION FUNDING AGENCY,04/09/2012,Grants,Converter Academies,Boston Witham Academies Federation,Public Sector,"Grants paid to organisations including agencies, arms length bodies and educational establishments",PAYBACSAUTO 34498,"757,074"
Department for Education,EDUCATION FUNDING AGENCY,04/09/2012,Grants,Converter Academies,Childwall Sports and Science Academy,Public Sector,"Grants paid to organisations including agencies, arms length bodies and educational establishments",PAYBACSAUTO 34454,"737,298"
Department for Education,EDUCATION FUNDING AGENCY,04/09/2012,Grants,Converter Academies,Copthall School,Public Sector,"Grants paid to organisations including agencies, arms length bodies and educational establishments",PAYBACSAUTO 34463,"723,635"
Department for Education,EDUCATION FUNDING AGENCY,04/09/2012,Grants,Converter Academies,George Dixon Academy,Public Sector,"Grants paid to organisations including agencies, arms length bodies and educational establishments",PAYBACSAUTO 34483,"721,888"
Department for Education,EDUCATION FUNDING AGENCY,04/09/2012,Grants,Converter Academies,Newent Community School and Sixth Fo,Public Sector,"Grants paid to organisations including agencies, arms length bodies and educational establishments",PAYBACSAUTO 34529,"689,874"
Department for Education,EDUCATION FUNDING AGENCY,04/09/2012,Grants,Partnership for Schools Legacy,BLACKPOOL BOROUGH COUNCIL,Public Sector,"Capital grants paid to organisations including agencies, arms length bodies and educational establishments",35109,"678,054"
Department for Education,EDUCATION FUNDING AGENCY,04/09/2012,Grants,Sponsored Academies,Greenwood Academies Trust,Public Sector,"Grants paid to organisations including agencies, arms length bodies and educational establishments",PAYBACSAUTO 34591,"670,456"
Department for Education,EDUCATION FUNDING AGENCY,04/09/2012,Grants,Converter Academies,St Birinus School,Public Sector,"Grants paid to organisations including agencies, arms length bodies and educational establishments",PAYBACSAUTO 34561,"665,378"
Department for Education,EDUCATION FUNDING AGENCY,04/09/2012,Grants,Sponsored Academies,Harris Academy Greenwich,Public Sector,"Grants paid to organisations including agencies, arms length bodies and educational establishments",PAYBACSAUTO 34496,"665,144"
Department for Education,EDUCATION FUNDING AGENCY,04/09/2012,Grants,Converter Academies,Cleeve Park School,Public Sector,"Grants paid to organisations including agencies, arms length bodies and educational establishments",PAYBACSAUTO 34459,"648,173"
Department for Education,EDUCATION FUNDING AGENCY,04/09/2012,Grants,Sponsored Academies,Bridgwater College Academy,Public Sector,"Grants paid to organisations including agencies, arms length bodies and educational establishments",PAYBACSAUTO 34445,"646,734"
Department for Education,EDUCATION FUNDING AGENCY,04/09/2012,Grants,Sponsored Academies,West Walsall E-ACT Academy,Public Sector,"Grants paid to organisations including agencies, arms length bodies and educational establishments",PAYBACSAUTO 34594,"640,816"
Department for Education,EDUCATION FUNDING AGENCY,04/09/2012,Grants,Converter Academies,Byrchall High School,Public Sector,"Grants paid to organisations including agencies, arms length bodies and educational establishments",PAYBACSAUTO 34579,"637,573"
Department for Education,EDUCATION FUNDING AGENCY,04/09/2012,Grants,Sponsored Academies,The Co-operative Academy of Leeds,Public Sector,"Grants paid to organisations including agencies, arms length bodies and educational establishments",PAYBACSAUTO 34462,"628,978"
Department for Education,EDUCATION FUNDING AGENCY,04/09/2012,Grants,Converter Academies,Ormesby School,Public Sector,"Grants paid to organisations including agencies, arms length bodies and educational establishments",PAYBACSAUTO 34543,"614,228"
Department for Education,EDUCATION FUNDING AGENCY,04/09/2012,Grants,Sponsored Academies,CfBT Schools Trust T/A Queensbury Ac,Public Sector,"Grants paid to organisations including agencies, arms length bodies and educational establishments",PAYBACSAUTO 34548,"607,241"
Department for Education,EDUCATION FUNDING AGENCY,04/09/2012,Grants,Converter Academies,The Painsley Catholic Academy,Public Sector,"Grants paid to organisations including agencies, arms length bodies and educational establishments",PAYBACSAUTO 34544,"596,280"
Department for Education,EDUCATION FUNDING AGENCY,04/09/2012,Grants,Converter Academies,New Bridge School,Public Sector,"Grants paid to organisations including agencies, arms length bodies and educational establishments",PAYBACSAUTO 34527,"582,172"
Department for Education,EDUCATION FUNDING AGENCY,04/09/2012,Grants,Converter Academies,The Matthew Arnold School,Public Sector,"Grants paid to organisations including agencies, arms length bodies and educational establishments",PAYBACSAUTO 34519,"574,809"
Department for Education,EDUCATION FUNDING AGENCY,04/09/2012,Grants,Converter Academies,HORBURY ACADEMY,Public Sector,"Grants paid to organisations including agencies, arms length bodies and educational establishments",PAYBACSAUTO 34505,"569,539"
Department for Education,EDUCATION FUNDING AGENCY,04/09/2012,Grants,Sponsored Academies,Orchard School Bristol,Public Sector,"Grants paid to organisations including agencies, arms length bodies and educational establishments",PAYBACSAUTO 34542,"539,385"
Department for Education,EDUCATION FUNDING AGENCY,04/09/2012,Grants,Converter Academies,"Rawlett School, an AET Academy",Public Sector,"Grants paid to organisations including agencies, arms length bodies and educational establishments",PAYBACSAUTO 34550,"532,561"
Department for Education,EDUCATION FUNDING AGENCY,04/09/2012,Grants,Converter Secondary Schools In-year openers,Newport Free Grammar School,Public Sector,"Grants paid to organisations including agencies, arms length bodies and educational establishments",PAYBACSAUTO 34526,"529,408"
Department for Education,EDUCATION FUNDING AGENCY,04/09/2012,Grants,Sponsored Academies,Chaucer School,Public Sector,"Grants paid to organisations including agencies, arms length bodies and educational establishments",PAYBACSAUTO 34450,"528,051"
Department for Education,EDUCATION FUNDING AGENCY,04/09/2012,Grants,Sponsored Academies,Sir Herbert Leon Academy,Public Sector,"Grants paid to organisations including agencies, arms length bodies and educational establishments",PAYBACSAUTO 34556,"527,534"
Department for Education,EDUCATION FUNDING AGENCY,04/09/2012,Grants,Sponsored Academies,Tollbar Multi Academy Trust,Public Sector,"Grants paid to organisations including agencies, arms length bodies and educational establishments",PAYBACSAUTO 34587,"491,694"
Department for Education,EDUCATION FUNDING AGENCY,04/09/2012,Grants,Converter Academies,The Kemnal Academies Trust - Bridgem,Public Sector,"Grants paid to organisations including agencies, arms length bodies and educational establishments",PAYBACSAUTO 34444,"480,544"
Department for Education,EDUCATION FUNDING AGENCY,04/09/2012,Grants,Converter Academies,The County High School Leftwich,Public Sector,"Grants paid to organisations including agencies, arms length bodies and educational establishments",PAYBACSAUTO 34576,"469,354"
Department for Education,EDUCATION FUNDING AGENCY,04/09/2012,Grants,Sponsored Academies,Blue Coat CofE Academy Walsall,Public Sector,"Grants paid to organisations including agencies, arms length bodies and educational establishments",PAYBACSAUTO 34440,"467,000"
Department for Education,EDUCATION FUNDING AGENCY,04/09/2012,Grants,Converter Academies,KING JAMES'S SCHOOL,Public Sector,"Grants paid to organisations including agencies, arms length bodies and educational establishments",PAYBACSAUTO 34511,"462,783"
Department for Education,EDUCATION FUNDING AGENCY,04/09/2012,Grants,Converter Academies,Woodham Academy,Public Sector,"Grants paid to organisations including agencies, arms length bodies and educational establishments",PAYBACSAUTO 34597,"459,416"
Department for Education,EDUCATION FUNDING AGENCY,04/09/2012,Grants,Converter Academies,Flegg High School,Public Sector,"Grants paid to organisations including agencies, arms length bodies and educational establishments",PAYBACSAUTO 34481,"458,652"
Department for Education,EDUCATION FUNDING AGENCY,04/09/2012,Grants,Converter Academies,Lion Academy Trust T/A Barclay Prima,Public Sector,"Grants paid to organisations including agencies, arms length bodies and educational establishments",PAYBACSAUTO 34433,"456,769"
Department for Education,EDUCATION FUNDING AGENCY,04/09/2012,Grants,Converter Secondary Schools In-year openers,Eggar's School,Public Sector,"Grants paid to organisations including agencies, arms length bodies and educational establishments",PAYBACSAUTO 34472,"455,635"
Department for Education,EDUCATION FUNDING AGENCY,04/09/2012,Grants,Converter Academies,ARK Putney Academy,Public Sector,"Grants paid to organisations including agencies, arms length bodies and educational establishments",PAYBACSAUTO 34473,"448,668"
Department for Education,EDUCATION FUNDING AGENCY,04/09/2012,Grants,Converter Academies,Long Field School,Public Sector,"Grants paid to organisations including agencies, arms length bodies and educational establishments",PAYBACSAUTO 34516,"412,862"
Department for Education,EDUCATION FUNDING AGENCY,04/09/2012,Grants,Converter Academies,New Forest Academy,Public Sector,"Grants paid to organisations including agencies, arms length bodies and educational establishments",PAYBACSAUTO 34530,"403,428"
Department for Education,EDUCATION FUNDING AGENCY,04/09/2012,Grants,Converter Academies,The Thomas Cowley High School Ltd,Public Sector,"Grants paid to organisations including agencies, arms length bodies and educational establishments",PAYBACSAUTO 34574,"372,057"
Department for Education,EDUCATION FUNDING AGENCY,04/09/2012,Grants,Converter Academies,The Skegness Grammar School,Public Sector,"Grants paid to organisations including agencies, arms length bodies and educational establishments",PAYBACSAUTO 34575,"368,110"
Department for Education,EDUCATION FUNDING AGENCY,04/09/2012,Grants,Converter Academies,ACLE ACADEMY,Public Sector,"Grants paid to organisations including agencies, arms length bodies and educational establishments",PAYBACSAUTO 34428,"352,799"
Department for Education,EDUCATION FUNDING AGENCY,04/09/2012,Grants,Converter Academies,Latchmere School,Public Sector,"Grants paid to organisations including agencies, arms length bodies and educational establishments",PAYBACSAUTO 34514,"313,627"
Department for Education,EDUCATION FUNDING AGENCY,04/09/2012,Grants,Converter Secondary Schools In-year openers,William Lovell Church of England Sch,Public Sector,"Grants paid to organisations including agencies, arms length bodies and educational establishments",PAYBACSAUTO 34595,"307,665"
Department for Education,EDUCATION FUNDING AGENCY,04/09/2012,Grants,Converter Academies,Ibstock Community College,Public Sector,"Grants paid to organisations including agencies, arms length bodies and educational establishments",PAYBACSAUTO 34506,"306,218"
Department for Education,EDUCATION FUNDING AGENCY,04/09/2012,Grants,Sponsored Academies,"Noel Park Primary School, An AET Aca",Public Sector,"Grants paid to organisations including agencies, arms length bodies and educational establishments",PAYBACSAUTO 34533,"295,907"
Department for Education,EDUCATION FUNDING AGENCY,04/09/2012,Grants,Sponsored Academies,The Purston E-ACT Academy,Public Sector,"Grants paid to organisations including agencies, arms length bodies and educational establishments",PAYBACSAUTO 34581,"292,128"
Department for Education,EDUCATION FUNDING AGENCY,04/09/2012,Grants,Sponsored Academies,ARK Kings Academy,Public Sector,"Grants paid to organisations including agencies, arms length bodies and educational establishments",PAYBACSAUTO 34429,"281,475"
Department for Education,EDUCATION FUNDING AGENCY,04/09/2012,Grants,Converter Academies,Hornbeam Academy Trust,Public Sector,"Grants paid to organisations including agencies, arms length bodies and educational establishments",PAYBACSAUTO 34447,"269,686"
Department for Education,EDUCATION FUNDING AGENCY,04/09/2012,Grants,Sponsored Academies,Gillbrook Academy,Public Sector,"Grants paid to organisations including agencies, arms length bodies and educational establishments",PAYBACSAUTO 34484,"264,112"
Department for Education,EDUCATION FUNDING AGENCY,04/09/2012,Grants,Converter Academies,Glendene Arts Academy,Public Sector,"Grants paid to organisations including agencies, arms length bodies and educational establishments",PAYBACSAUTO 34485,"263,404"
Department for Education,EDUCATION FUNDING AGENCY,04/09/2012,Grants,Converter Academies,BEACON HILL ACADEMY,Public Sector,"Grants paid to organisations including agencies, arms length bodies and educational establishments",PAYBACSAUTO 34435,"262,982"
Department for Education,EDUCATION FUNDING AGENCY,04/09/2012,Grants,Converter Academies,Percy Shurmer Academy,Public Sector,"Grants paid to organisations including agencies, arms length bodies and educational establishments",PAYBACSAUTO 34547,"260,685"
Department for Education,EDUCATION FUNDING AGENCY,04/09/2012,Grants,Converter Academies,Millbank Academy,Public Sector,"Grants paid to organisations including agencies, arms length bodies and educational establishments",PAYBACSAUTO 34522,"254,266"
Department for Education,EDUCATION FUNDING AGENCY,04/09/2012,Grants,Converter Academies,Shipston High School,Public Sector,"Grants paid to organisations including agencies, arms length bodies and educational establishments",PAYBACSAUTO 34555,"251,792"
Department for Education,EDUCATION FUNDING AGENCY,04/09/2012,Grants,Converter Academies,Wyvern Academy,Public Sector,"Grants paid to organisations including agencies, arms length bodies and educational establishments",PAYBACSAUTO 34598,"249,973"
Department for Education,EDUCATION FUNDING AGENCY,04/09/2012,Grants,Sponsored Academies,Oasis Academy Nunsthorpe,Public Sector,"Grants paid to organisations including agencies, arms length bodies and educational establishments",PAYBACSAUTO 34537,"247,059"
Department for Education,EDUCATION FUNDING AGENCY,04/09/2012,Grants,Converter Academies,Southway Primary,Public Sector,"Grants paid to organisations including agencies, arms length bodies and educational establishments",PAYBACSAUTO 34560,"243,566"
Department for Education,EDUCATION FUNDING AGENCY,04/09/2012,Grants,Sponsored Academies,Harris Primary Academy Coleraine Par,Public Sector,"Grants paid to organisations including agencies, arms length bodies and educational establishments",PAYBACSAUTO 34497,"243,375"
Department for Education,EDUCATION FUNDING AGENCY,04/09/2012,Grants,Sponsored Academies,Berrygrove Academy,Public Sector,"Grants paid to organisations including agencies, arms length bodies and educational establishments",PAYBACSAUTO 34439,"240,215"
Department for Education,EDUCATION FUNDING AGENCY,04/09/2012,Grants,Converter Academies,Greenwood Academies Trust,Public Sector,"Grants paid to organisations including agencies, arms length bodies and educational establishments",PAYBACSAUTO 34510,"238,174"
Department for Education,EDUCATION FUNDING AGENCY,04/09/2012,Grants,Sponsored Academies,King Edward VI Academy,Public Sector,"Grants paid to organisations including agencies, arms length bodies and educational establishments",PAYBACSAUTO 34512,"237,595"
Department for Education,EDUCATION FUNDING AGENCY,04/09/2012,Grants,Sponsored Academies,Barton Hill Academy,Public Sector,"Grants paid to organisations including agencies, arms length bodies and educational establishments",PAYBACSAUTO 34434,"233,398"
Department for Education,EDUCATION FUNDING AGENCY,04/09/2012,Grants,Converter Academies,Boston Witham Academies Federation,Public Sector,"Grants paid to organisations including agencies, arms length bodies and educational establishments",PAYBACSAUTO 34441,"222,192"
Department for Education,EDUCATION FUNDING AGENCY,04/09/2012,Grants,Converter Academies,Wishmore Cross Academy,Public Sector,"Grants paid to organisations including agencies, arms length bodies and educational establishments",PAYBACSAUTO 34596,"221,943"
Department for Education,EDUCATION FUNDING AGENCY,04/09/2012,Grants,Converter Academies,Norbreck Primary Academy,Public Sector,"Grants paid to organisations including agencies, arms length bodies and educational establishments",PAYBACSAUTO 34535,"221,216"
Department for Education,EDUCATION FUNDING AGENCY,04/09/2012,Grants,Converter Academies,ARK Tindal Primary Academy,Public Sector,"Grants paid to organisations including agencies, arms length bodies and educational establishments",PAYBACSAUTO 34586,"219,526"
Department for Education,EDUCATION FUNDING AGENCY,04/09/2012,Grants,Converter Academies,The Green Way Academy,Public Sector,"Grants paid to organisations including agencies, arms length bodies and educational establishments",PAYBACSAUTO 34492,"217,404"
Department for Education,EDUCATION FUNDING AGENCY,04/09/2012,Grants,Converter Academies,Welbeck Academy,Public Sector,"Grants paid to organisations including agencies, arms length bodies and educational establishments",PAYBACSAUTO 34590,"216,941"
Department for Education,EDUCATION FUNDING AGENCY,04/09/2012,Grants,Sponsored Academies,Trinity Primary Academy,Public Sector,"Grants paid to organisations including agencies, arms length bodies and educational establishments",PAYBACSAUTO 34589,"209,138"
Department for Education,EDUCATION FUNDING AGENCY,04/09/2012,Grants,Converter Academies,Equitas Academy Trust,VCS,Grants to third sector organisations / not for profit organisations,PAYBACSAUTO 34453,"205,225"
Department for Education,EDUCATION FUNDING AGENCY,04/09/2012,Grants,Converter Academies,Reedswood E-ACT Primary School,Public Sector,"Grants paid to organisations including agencies, arms length bodies and educational establishments",PAYBACSAUTO 34438,"198,036"
Department for Education,EDUCATION FUNDING AGENCY,04/09/2012,Grants,Converter Academies,Great Barr Primary School,Public Sector,"Grants paid to organisations including agencies, arms length bodies and educational establishments",PAYBACSAUTO 34489,"195,142"
Department for Education,EDUCATION FUNDING AGENCY,04/09/2012,Grants,Converter Academies,Old Basford School,Public Sector,"Grants paid to organisations including agencies, arms length bodies and educational establishments",PAYBACSAUTO 34540,"194,416"
Department for Education,EDUCATION FUNDING AGENCY,04/09/2012,Grants,Converter Secondary Schools In-year openers,Barnfield Academy Trust,Public Sector,"Grants paid to organisations including agencies, arms length bodies and educational establishments",PAYBACSAUTO 34521,"189,206"
Department for Education,EDUCATION FUNDING AGENCY,04/09/2012,Grants,Converter Academies,Boston Witham Academies Federation,Public Sector,"Grants paid to organisations including agencies, arms length bodies and educational establishments",PAYBACSAUTO 34442,"187,009"
Department for Education,EDUCATION FUNDING AGENCY,04/09/2012,Grants,Converter Academies,THAMES VIEW INFANTS,Public Sector,"Grants paid to organisations including agencies, arms length bodies and educational establishments",PAYBACSAUTO 34573,"183,754"
Department for Education,EDUCATION FUNDING AGENCY,04/09/2012,Grants,Converter Academies,GREENHOLM SCHOOL,Public Sector,"Grants paid to organisations including agencies, arms length bodies and educational establishments",PAYBACSAUTO 34490,"182,076"
Department for Education,EDUCATION FUNDING AGENCY,04/09/2012,Grants,Converter Academies,Danetree Junior School,Public Sector,"Grants paid to organisations including agencies, arms length bodies and educational establishments",PAYBACSAUTO 34465,"167,534"
Department for Education,EDUCATION FUNDING AGENCY,04/09/2012,Grants,Converter Academies,The Hill,Commercial,"Grants paid to organisations including agencies, arms length bodies and educational establishments",PAYBACSAUTO 34577,"166,378"
Department for Education,EDUCATION FUNDING AGENCY,04/09/2012,Grants,Converter Academies,Greenwood Academies Trust,Public Sector,"Grants paid to organisations including agencies, arms length bodies and educational establishments",PAYBACSAUTO 34518,"165,977"
Department for Education,EDUCATION FUNDING AGENCY,04/09/2012,Grants,Converter Academies,Greenfield E-ACT Primary Academy,Public Sector,"Grants paid to organisations including agencies, arms length bodies and educational establishments",PAYBACSAUTO 34487,"165,929"
Department for Education,EDUCATION FUNDING AGENCY,04/09/2012,Grants,Converter Academies,Colston's Primary School,Public Sector,"Grants paid to organisations including agencies, arms length bodies and educational establishments",PAYBACSAUTO 34460,"164,863"
Department for Education,EDUCATION FUNDING AGENCY,04/09/2012,Grants,Converter Academies,School Partnership Trust Academies -,VCS,Grants to third sector organisations / not for profit organisations,PAYBACSAUTO 34477,"164,501"
Department for Education,EDUCATION FUNDING AGENCY,04/09/2012,Grants,Converter Academies,HERONS' MOOR ACADEMY TRUST,Public Sector,"Grants paid to organisations including agencies, arms length bodies and educational establishments",PAYBACSAUTO 34500,"162,684"
Department for Education,EDUCATION FUNDING AGENCY,04/09/2012,Grants,Converter Secondary Schools In-year openers,Beis Yaakov Jewish High School Acade,Public Sector,"Grants paid to organisations including agencies, arms length bodies and educational establishments",PAYBACSAUTO 34436,"162,556"
Department for Education,EDUCATION FUNDING AGENCY,04/09/2012,Grants,Sponsored Academies,Oasis Academy Connaught,Public Sector,"Grants paid to organisations including agencies, arms length bodies and educational establishments",PAYBACSAUTO 34538,"157,130"
Department for Education,EDUCATION FUNDING AGENCY,04/09/2012,Grants,Converter Academies,Armthorpe Shaw Wood Academy Ltd,Commercial,"Grants paid to organisations including agencies, arms length bodies and educational establishments",PAYBACSAUTO 34554,"156,499"
Department for Education,EDUCATION FUNDING AGENCY,04/09/2012,Grants,Converter Academies,Tollbar Multi Academy Trust,Public Sector,"Grants paid to organisations including agencies, arms length bodies and educational establishments",PAYBACSAUTO 34588,"152,539"
Department for Education,EDUCATION FUNDING AGENCY,04/09/2012,Grants,Converter Academies,Hook-with-Warsash Church Of England,Public Sector,"Grants paid to organisations including agencies, arms length bodies and educational establishments",PAYBACSAUTO 34504,"152,030"
Department for Education,EDUCATION FUNDING AGENCY,04/09/2012,Grants,Converter Academies,The Milford Academy,Public Sector,"Grants paid to organisations including agencies, arms length bodies and educational establishments",PAYBACSAUTO 34523,"151,075"
Department for Education,EDUCATION FUNDING AGENCY,04/09/2012,Grants,Converter Academies,Godolphin Infant School,Public Sector,"Grants paid to organisations including agencies, arms length bodies and educational establishments",PAYBACSAUTO 34486,"150,938"
Department for Education,EDUCATION FUNDING AGENCY,04/09/2012,Grants,Converter Academies,Greenwood Academies Trust,Public Sector,"Grants paid to organisations including agencies, arms length bodies and educational establishments",PAYBACSAUTO 34558,"148,710"
Department for Education,EDUCATION FUNDING AGENCY,04/09/2012,Grants,Sponsored Academies,Green Field Academy,Public Sector,"Grants paid to organisations including agencies, arms length bodies and educational establishments",PAYBACSAUTO 34493,"147,192"
Department for Education,EDUCATION FUNDING AGENCY,04/09/2012,Grants,Converter Academies,Windsor Academy Trust t/a Goldsmith,Public Sector,"Grants paid to organisations including agencies, arms length bodies and educational establishments",PAYBACSAUTO 34495,"143,816"
Department for Education,EDUCATION FUNDING AGENCY,04/09/2012,Grants,Sponsored Academies,Charles Warren Academy,Public Sector,"Grants paid to organisations including agencies, arms length bodies and educational establishments",PAYBACSAUTO 34451,"140,495"
Department for Education,EDUCATION FUNDING AGENCY,04/09/2012,Grants,Converter Academies,Kenningtons Primary Academy,Public Sector,"Grants paid to organisations including agencies, arms length bodies and educational establishments",PAYBACSAUTO 34509,"139,071"
Department for Education,EDUCATION FUNDING AGENCY,04/09/2012,Grants,Converter Academies,Moorhead Primary School,Public Sector,"Grants paid to organisations including agencies, arms length bodies and educational establishments",PAYBACSAUTO 34524,"138,604"
Department for Education,EDUCATION FUNDING AGENCY,04/09/2012,Grants,Converter Academies,The Stour Academy Trust:  Sturry CE,Public Sector,"Grants paid to organisations including agencies, arms length bodies and educational establishments",PAYBACSAUTO 34572,"136,599"
Department for Education,EDUCATION FUNDING AGENCY,04/09/2012,Grants,Converter Academies,Oasis Academy New Oak,Public Sector,"Grants paid to organisations including agencies, arms length bodies and educational establishments",PAYBACSAUTO 34528,"135,540"
Department for Education,EDUCATION FUNDING AGENCY,04/09/2012,Grants,Converter Academies,The Manor C of E School,Public Sector,"Grants paid to organisations including agencies, arms length bodies and educational establishments",PAYBACSAUTO 34578,"133,175"
Department for Education,EDUCATION FUNDING AGENCY,04/09/2012,Grants,Converter Academies,ARK Bentworth Primary Academy,Public Sector,"Grants paid to organisations including agencies, arms length bodies and educational establishments",PAYBACSAUTO 34437,"130,236"
Department for Education,EDUCATION FUNDING AGENCY,04/09/2012,Grants,Converter Academies,MINERVA PRIMARY ACADEMY,Public Sector,"Grants paid to organisations including agencies, arms length bodies and educational establishments",PAYBACSAUTO 34502,"129,845"
Department for Education,EDUCATION FUNDING AGENCY,04/09/2012,Grants,Converter Academies,WAKEFIELD DIOCESAN ACADEMIES TRUST,Public Sector,"Grants paid to organisations including agencies, arms length bodies and educational establishments",PAYBACSAUTO 34456,"129,025"
Department for Education,EDUCATION FUNDING AGENCY,04/09/2012,Grants,Sponsored Academies,Radburn Primary School,Public Sector,"Grants paid to organisations including agencies, arms length bodies and educational establishments",PAYBACSAUTO 34549,"128,757"
Department for Education,EDUCATION FUNDING AGENCY,04/09/2012,Grants,Converter Academies,Hall Road Academy,Public Sector,"Grants paid to organisations including agencies, arms length bodies and educational establishments",PAYBACSAUTO 34494,"128,031"
Department for Education,EDUCATION FUNDING AGENCY,04/09/2012,Grants,Converter Academies,Nechells E-ACT Primary Academy,Public Sector,"Grants paid to organisations including agencies, arms length bodies and educational establishments",PAYBACSAUTO 34525,"127,606"
Department for Education,EDUCATION FUNDING AGENCY,04/09/2012,Grants,Converter Academies,Northern Education Trust - Ryecroft,Public Sector,"Grants paid to organisations including agencies, arms length bodies and educational establishments",PAYBACSAUTO 34552,"122,280"
Department for Education,EDUCATION FUNDING AGENCY,04/09/2012,Grants,Converter Academies,Frome Vale Academy,Public Sector,"Grants paid to organisations including agencies, arms length bodies and educational establishments",PAYBACSAUTO 34541,"122,261"
Department for Education,EDUCATION FUNDING AGENCY,04/09/2012,Grants,Sponsored Academies,CfBT Schools Trust trading as Meadow,Public Sector,"Grants paid to organisations including agencies, arms length bodies and educational establishments",PAYBACSAUTO 34520,"122,188"
Department for Education,EDUCATION FUNDING AGENCY,04/09/2012,Grants,Sponsored Academies,Peak Academy,Public Sector,"Grants paid to organisations including agencies, arms length bodies and educational establishments",PAYBACSAUTO 34545,"117,758"
Department for Education,EDUCATION FUNDING AGENCY,04/09/2012,Grants,Sponsored Academies,Portsmouth & Winchester Diocesan Aca,Public Sector,"Grants paid to organisations including agencies, arms length bodies and educational establishments",PAYBACSAUTO 34562,"115,444"
Department for Education,EDUCATION FUNDING AGENCY,04/09/2012,Grants,Converter Academies,Highgate Academy,Public Sector,"Grants paid to organisations including agencies, arms length bodies and educational establishments",PAYBACSAUTO 34467,"115,170"
Department for Education,EDUCATION FUNDING AGENCY,04/09/2012,Grants,Converter Academies,Carrfield Academy,Public Sector,"Grants paid to organisations including agencies, arms length bodies and educational establishments",PAYBACSAUTO 34466,"114,528"
Department for Education,EDUCATION FUNDING AGENCY,04/09/2012,Grants,Converter Academies,Greenwood Academies Trust,Public Sector,"Grants paid to organisations including agencies, arms length bodies and educational establishments",PAYBACSAUTO 34557,"112,538"
Department for Education,EDUCATION FUNDING AGENCY,04/09/2012,Grants,Converter Academies,North Hykeham Ling Moor Primary Scho,Public Sector,"Grants paid to organisations including agencies, arms length bodies and educational establishments",PAYBACSAUTO 34534,"108,159"
Department for Education,EDUCATION FUNDING AGENCY,04/09/2012,Grants,Converter Academies,OASIS ACADEMY BYRON,Public Sector,"Grants paid to organisations including agencies, arms length bodies and educational establishments",PAYBACSAUTO 34448,"107,874"
Department for Education,EDUCATION FUNDING AGENCY,04/09/2012,Grants,Converter Academies,Tollbar Multi Academy Trust,Public Sector,"Grants paid to organisations including agencies, arms length bodies and educational establishments",PAYBACSAUTO 34588,"103,726"
Department for Education,EDUCATION FUNDING AGENCY,04/09/2012,Grants,Sponsored Academies,ARK Rose Primary Academy,Public Sector,"Grants paid to organisations including agencies, arms length bodies and educational establishments",PAYBACSAUTO 34430,"103,249"
Department for Education,EDUCATION FUNDING AGENCY,04/09/2012,Grants,Converter Academies,Ellison Boulters Church of England A,Public Sector,"Grants paid to organisations including agencies, arms length bodies and educational establishments",PAYBACSAUTO 34474,"103,053"
Department for Education,EDUCATION FUNDING AGENCY,04/09/2012,Grants,Converter Academies,Lee Chapel Academy Trust t/a G,Public Sector,"Grants paid to organisations including agencies, arms length bodies and educational establishments",PAYBACSAUTO 34488,"102,992"
Department for Education,EDUCATION FUNDING AGENCY,04/09/2012,Grants,Converter Academies,Newington Academy,Public Sector,"Grants paid to organisations including agencies, arms length bodies and educational establishments",PAYBACSAUTO 34531,"101,922"
Department for Education,EDUCATION FUNDING AGENCY,04/09/2012,Grants,Converter Academies,Epworth Primary Academy,Public Sector,"Grants paid to organisations including agencies, arms length bodies and educational establishments",PAYBACSAUTO 34476,"101,916"
Department for Education,EDUCATION FUNDING AGENCY,04/09/2012,Grants,Converter Academies,School Partnership Trust Academies -,VCS,Grants to third sector organisations / not for profit organisations,PAYBACSAUTO 34464,"101,859"
Department for Education,EDUCATION FUNDING AGENCY,04/09/2012,Grants,Sponsored Academies,The Ridge Academy,Public Sector,"Grants paid to organisations including agencies, arms length bodies and educational establishments",PAYBACSAUTO 34583,"100,282"
Department for Education,EDUCATION FUNDING AGENCY,04/09/2012,Grants,Converter Academies,OASIS ACADEMY BANK LEAZE,Public Sector,"Grants paid to organisations including agencies, arms length bodies and educational establishments",PAYBACSAUTO 34432,"94,271"
Department for Education,EDUCATION FUNDING AGENCY,04/09/2012,Grants,Converter Academies,THE DEAN TRUST - FOREST  GATE ACADEM,Public Sector,"Grants paid to organisations including agencies, arms length bodies and educational establishments",PAYBACSAUTO 34482,"93,392"
Department for Education,EDUCATION FUNDING AGENCY,04/09/2012,Grants,Sponsored Academies,The Robert Fitzroy Academy,Public Sector,"Grants paid to organisations including agencies, arms length bodies and educational establishments",PAYBACSAUTO 34585,"91,418"
Department for Education,EDUCATION FUNDING AGENCY,04/09/2012,Grants,Converter Academies,Stoneleigh Primary School,Public Sector,"Grants paid to organisations including agencies, arms length bodies and educational establishments",PAYBACSAUTO 34570,"90,182"
Department for Education,EDUCATION FUNDING AGENCY,04/09/2012,Grants,Sponsored Academies,Greenwood Academies Trust,Public Sector,"Grants paid to organisations including agencies, arms length bodies and educational establishments",PAYBACSAUTO 34591,"89,133"
Department for Education,EDUCATION FUNDING AGENCY,04/09/2012,Grants,Converter Academies,West Malling Church of England Acade,Public Sector,"Grants paid to organisations including agencies, arms length bodies and educational establishments",PAYBACSAUTO 34592,"88,689"
Department for Education,EDUCATION FUNDING AGENCY,04/09/2012,Grants,Converter Academies,St John's C of E Academy Coleford,Public Sector,"Grants paid to organisations including agencies, arms length bodies and educational establishments",PAYBACSAUTO 34566,"85,901"
Department for Education,EDUCATION FUNDING AGENCY,04/09/2012,Grants,Converter Academies,St Thomas' Catholic Primary School,Public Sector,"Grants paid to organisations including agencies, arms length bodies and educational establishments",PAYBACSAUTO 34571,"85,311"
Department for Education,EDUCATION FUNDING AGENCY,04/09/2012,Grants,Converter Academies,Castle Academy,Public Sector,"Grants paid to organisations including agencies, arms length bodies and educational establishments",PAYBACSAUTO 34461,"84,194"
Department for Education,EDUCATION FUNDING AGENCY,04/09/2012,Grants,Converter Academies,Elmridge Primary School,Public Sector,"Grants paid to organisations including agencies, arms length bodies and educational establishments",PAYBACSAUTO 34475,"83,485"
Department for Education,EDUCATION FUNDING AGENCY,04/09/2012,Grants,Converter Academies,New Bridge School,Public Sector,"Grants paid to organisations including agencies, arms length bodies and educational establishments",PAYBACSAUTO 34527,"82,700"
Department for Education,EDUCATION FUNDING AGENCY,04/09/2012,Grants,Converter Academies,Avanti Schools Trust trading as Kris,Public Sector,"Grants paid to organisations including agencies, arms length bodies and educational establishments",PAYBACSAUTO 34513,"81,106"
Department for Education,EDUCATION FUNDING AGENCY,04/09/2012,Grants,Converter Academies,St Filumena's Catholic Primary Schoo,Public Sector,"Grants paid to organisations including agencies, arms length bodies and educational establishments",PAYBACSAUTO 34563,"80,791"
Department for Education,EDUCATION FUNDING AGENCY,04/09/2012,Grants,Converter Academies,Brockworth Primary Academy,Public Sector,"Grants paid to organisations including agencies, arms length bodies and educational establishments",PAYBACSAUTO 34446,"79,650"
Department for Education,EDUCATION FUNDING AGENCY,04/09/2012,Grants,Converter Academies,St Giles Catholic Primary School,Public Sector,"Grants paid to organisations including agencies, arms length bodies and educational establishments",PAYBACSAUTO 34564,"79,425"
Department for Education,EDUCATION FUNDING AGENCY,04/09/2012,Grants,Converter Academies,St Joseph's Catholic Primary School,Public Sector,"Grants paid to organisations including agencies, arms length bodies and educational establishments",PAYBACSAUTO 34565,"78,395"
Department for Education,EDUCATION FUNDING AGENCY,04/09/2012,Grants,Converter Academies,Kelsall Primary School,Public Sector,"Grants paid to organisations including agencies, arms length bodies and educational establishments",PAYBACSAUTO 34508,"77,855"
Department for Education,EDUCATION FUNDING AGENCY,04/09/2012,Grants,Converter Academies,Westwoodside C.E. School,Public Sector,"Grants paid to organisations including agencies, arms length bodies and educational establishments",PAYBACSAUTO 34593,"77,260"
Department for Education,EDUCATION FUNDING AGENCY,04/09/2012,Grants,Converter Academies,Southfields Academy,Public Sector,"Grants paid to organisations including agencies, arms length bodies and educational establishments",PAYBACSAUTO 34559,"74,828"
Department for Education,EDUCATION FUNDING AGENCY,04/09/2012,Grants,Converter Academies,Finningley Church of England Primary,Public Sector,"Grants paid to organisations including agencies, arms length bodies and educational establishments",PAYBACSAUTO 34480,"72,806"
Department for Education,EDUCATION FUNDING AGENCY,04/09/2012,Grants,Converter Academies,St Mary's Catholic Primary School,Public Sector,"Grants paid to organisations including agencies, arms length bodies and educational establishments",PAYBACSAUTO 34568,"72,460"
Department for Education,EDUCATION FUNDING AGENCY,04/09/2012,Grants,Converter Academies,Perry Beeches II - The Free School,Public Sector,"Grants paid to organisations including agencies, arms length bodies and educational establishments",PAYBACSAUTO 34546,"71,800"
Department for Education,EDUCATION FUNDING AGENCY,04/09/2012,Grants,Converter Academies,Greenwood Academies Trust,Public Sector,"Grants paid to organisations including agencies, arms length bodies and educational establishments",PAYBACSAUTO 34507,"68,627"
Department for Education,EDUCATION FUNDING AGENCY,04/09/2012,Grants,Sponsored Academies,The Co-operative Academy of Leeds,Public Sector,"Grants paid to organisations including agencies, arms length bodies and educational establishments",PAYBACSAUTO 34462,"68,064"
Department for Education,EDUCATION FUNDING AGENCY,04/09/2012,Grants,Converter Academies,Field Lane Primary School - Brighter,Public Sector,"Grants paid to organisations including agencies, arms length bodies and educational establishments",PAYBACSAUTO 34479,"67,609"
Department for Education,EDUCATION FUNDING AGENCY,04/09/2012,Grants,Converter Academies,Axbridge C of E First School Academy,Public Sector,"Grants paid to organisations including agencies, arms length bodies and educational establishments",PAYBACSAUTO 34431,"66,604"
Department for Education,EDUCATION FUNDING AGENCY,04/09/2012,Grants,Sponsored Academies,Harris Academy Greenwich,Public Sector,"Grants paid to organisations including agencies, arms length bodies and educational establishments",PAYBACSAUTO 34496,"65,493"
Department for Education,EDUCATION FUNDING AGENCY,04/09/2012,Grants,Converter Academies,Childwall Sports and Science Academy,Public Sector,"Grants paid to organisations including agencies, arms length bodies and educational establishments",PAYBACSAUTO 34454,"65,059"
Department for Education,EDUCATION FUNDING AGENCY,04/09/2012,Grants,Converter Academies,Boston Witham Academies Federation,Public Sector,"Grants paid to organisations including agencies, arms length bodies and educational establishments",PAYBACSAUTO 34498,"64,403"
Department for Education,EDUCATION FUNDING AGENCY,04/09/2012,Grants,Converter Academies,Offa's Mead Primary School,Public Sector,"Grants paid to organisations including agencies, arms length bodies and educational establishments",PAYBACSAUTO 34539,"64,138"
Department for Education,EDUCATION FUNDING AGENCY,04/09/2012,Grants,Converter Academies,LYMM HIGH SCHOOL,Public Sector,"Grants paid to organisations including agencies, arms length bodies and educational establishments",PAYBACSAUTO 34517,"64,055"
Department for Education,EDUCATION FUNDING AGENCY,04/09/2012,Grants,Converter Academies,NISHKAM HIGH SCHOOL,Public Sector,"Grants paid to organisations including agencies, arms length bodies and educational establishments",PAYBACSAUTO 34532,"63,048"
Department for Education,EDUCATION FUNDING AGENCY,04/09/2012,Grants,Sponsored Academies,ARK Kings Academy,Public Sector,"Grants paid to organisations including agencies, arms length bodies and educational establishments",PAYBACSAUTO 34429,"62,684"
Department for Education,EDUCATION FUNDING AGENCY,04/09/2012,Grants,Converter Academies,City Gateway 14-19 Provision,Public Sector,"Grants paid to organisations including agencies, arms length bodies and educational establishments",PAYBACSAUTO 34458,"60,500"
Department for Education,EDUCATION FUNDING AGENCY,04/09/2012,Grants,Sponsored Academies,Bridgwater College Academy,Public Sector,"Grants paid to organisations including agencies, arms length bodies and educational establishments",PAYBACSAUTO 34445,"60,097"
Department for Education,EDUCATION FUNDING AGENCY,04/09/2012,Grants,Sponsored Academies,Tollbar Multi Academy Trust,Public Sector,"Grants paid to organisations including agencies, arms length bodies and educational establishments",PAYBACSAUTO 34587,"59,947"
Department for Education,EDUCATION FUNDING AGENCY,04/09/2012,Grants,Sponsored Academies,CfBT Schools Trust T/A Queensbury Ac,Public Sector,"Grants paid to organisations including agencies, arms length bodies and educational establishments",PAYBACSAUTO 34548,"59,769"
Department for Education,EDUCATION FUNDING AGENCY,04/09/2012,Grants,Sponsored Academies,Greenwood Academies Trust,Public Sector,"Grants paid to organisations including agencies, arms length bodies and educational establishments",PAYBACSAUTO 34591,"58,962"
Department for Education,EDUCATION FUNDING AGENCY,04/09/2012,Grants,Sponsored Academies,Greenwood Academies Trust,Public Sector,"Grants paid to organisations including agencies, arms length bodies and educational establishments",PAYBACSAUTO 34591,"57,846"
Department for Education,EDUCATION FUNDING AGENCY,04/09/2012,Grants,Converter Academies,St Michael's Catholic Secondary Scho,Public Sector,"Grants paid to organisations including agencies, arms length bodies and educational establishments",PAYBACSAUTO 34567,"57,000"
Department for Education,EDUCATION FUNDING AGENCY,04/09/2012,Grants,Sponsored Academies,Chaucer School,Public Sector,"Grants paid to organisations including agencies, arms length bodies and educational establishments",PAYBACSAUTO 34450,"56,635"
Department for Education,EDUCATION FUNDING AGENCY,04/09/2012,Grants,Converter Academies,Boughton Primary School Trust,Public Sector,"Grants paid to organisations including agencies, arms length bodies and educational establishments",PAYBACSAUTO 34443,"55,795"
Department for Education,EDUCATION FUNDING AGENCY,04/09/2012,Grants,Sponsored Academies,Bridgwater College Academy,Public Sector,"Grants paid to organisations including agencies, arms length bodies and educational establishments",PAYBACSAUTO 34445,"55,248"
Department for Education,EDUCATION FUNDING AGENCY,04/09/2012,Grants,Converter Academies,HORBURY ACADEMY,Public Sector,"Grants paid to organisations including agencies, arms length bodies and educational establishments",PAYBACSAUTO 34505,"54,828"
Department for Education,EDUCATION FUNDING AGENCY,04/09/2012,Grants,Sponsored Academies,Orchard School Bristol,Public Sector,"Grants paid to organisations including agencies, arms length bodies and educational establishments",PAYBACSAUTO 34542,"54,067"
Department for Education,EDUCATION FUNDING AGENCY,04/09/2012,Grants,Converter Academies,The Stour Academy Trust:  Hersden Vi,Public Sector,"Grants paid to organisations including agencies, arms length bodies and educational establishments",PAYBACSAUTO 34501,"53,313"
Department for Education,EDUCATION FUNDING AGENCY,04/09/2012,Grants,Sponsored Academies,CfBT Schools Trust T/A Queensbury Ac,Public Sector,"Grants paid to organisations including agencies, arms length bodies and educational establishments",PAYBACSAUTO 34548,"52,089"
Department for Education,EDUCATION FUNDING AGENCY,04/09/2012,Grants,Converter Academies,Gretton Primary,Public Sector,"Grants paid to organisations including agencies, arms length bodies and educational establishments",PAYBACSAUTO 34491,"49,024"
Department for Education,EDUCATION FUNDING AGENCY,04/09/2012,Grants,Sponsored Academies,Severn View Academy,Public Sector,"Grants paid to organisations including agencies, arms length bodies and educational establishments",PAYBACSAUTO 34553,"48,334"
Department for Education,EDUCATION FUNDING AGENCY,04/09/2012,Grants,Sponsored Academies,The Co-operative Academy of Leeds,Public Sector,"Grants paid to organisations including agencies, arms length bodies and educational establishments",PAYBACSAUTO 34462,"48,300"
Department for Education,EDUCATION FUNDING AGENCY,04/09/2012,Grants,Converter Secondary Schools In-year openers,Hertswood Academy,Public Sector,"Grants paid to organisations including agencies, arms length bodies and educational establishments",PAYBACSAUTO 34499,"47,303"
Department for Education,EDUCATION FUNDING AGENCY,04/09/2012,Grants,Sponsored Academies,West Walsall E-ACT Academy,Public Sector,"Grants paid to organisations including agencies, arms length bodies and educational establishments",PAYBACSAUTO 34594,"45,731"
Department for Education,EDUCATION FUNDING AGENCY,04/09/2012,Grants,Sponsored Academies,Tollbar Multi Academy Trust,Public Sector,"Grants paid to organisations including agencies, arms length bodies and educational establishments",PAYBACSAUTO 34587,"45,450"
Department for Education,EDUCATION FUNDING AGENCY,04/09/2012,Grants,Sponsored Academies,Harris Academy Greenwich,Public Sector,"Grants paid to organisations including agencies, arms length bodies and educational establishments",PAYBACSAUTO 34496,"45,348"
Department for Education,EDUCATION FUNDING AGENCY,04/09/2012,Grants,Converter Academies,Chingford Foundation School,Public Sector,"Grants paid to organisations including agencies, arms length bodies and educational establishments",PAYBACSAUTO 34452,"45,051"
Department for Education,EDUCATION FUNDING AGENCY,04/09/2012,Grants,Converter Academies,St Birinus School,Public Sector,"Grants paid to organisations including agencies, arms length bodies and educational establishments",PAYBACSAUTO 34561,"44,694"
Department for Education,EDUCATION FUNDING AGENCY,04/09/2012,Grants,Converter Academies,CET Primary School Westminster,Public Sector,"Grants paid to organisations including agencies, arms length bodies and educational establishments",PAYBACSAUTO 34449,"43,768"
Department for Education,EDUCATION FUNDING AGENCY,04/09/2012,Grants,Converter Academies,NISHKAM HIGH SCHOOL,Public Sector,"Grants paid to organisations including agencies, arms length bodies and educational establishments",PAYBACSAUTO 34532,"43,750"
Department for Education,EDUCATION FUNDING AGENCY,04/09/2012,Grants,Converter Academies,City of Peterborough Academy Special,Public Sector,"Grants paid to organisations including agencies, arms length bodies and educational establishments",PAYBACSAUTO 34457,"43,377"
Department for Education,EDUCATION FUNDING AGENCY,04/09/2012,Grants,Converter Secondary Schools In-year openers,Newport Free Grammar School,Public Sector,"Grants paid to organisations including agencies, arms length bodies and educational establishments",PAYBACSAUTO 34526,"41,223"
Department for Education,EDUCATION FUNDING AGENCY,04/09/2012,Grants,Sponsored Academies,Chaucer School,Public Sector,"Grants paid to organisations including agencies, arms length bodies and educational establishments",PAYBACSAUTO 34450,"40,275"
Department for Education,EDUCATION FUNDING AGENCY,04/09/2012,Grants,Converter Academies,Perry Beeches II - The Free School,Public Sector,"Grants paid to organisations including agencies, arms length bodies and educational establishments",PAYBACSAUTO 34546,"40,000"
Department for Education,EDUCATION FUNDING AGENCY,04/09/2012,Grants,Converter Academies,The Skegness Grammar School,Public Sector,"Grants paid to organisations including agencies, arms length bodies and educational establishments",PAYBACSAUTO 34575,"39,346"
Department for Education,EDUCATION FUNDING AGENCY,04/09/2012,Grants,Converter Academies,NISHKAM HIGH SCHOOL,Public Sector,"Grants paid to organisations including agencies, arms length bodies and educational establishments",PAYBACSAUTO 34532,"39,069"
Department for Education,EDUCATION FUNDING AGENCY,04/09/2012,Grants,Sponsored Academies,Sir Herbert Leon Academy,Public Sector,"Grants paid to organisations including agencies, arms length bodies and educational establishments",PAYBACSAUTO 34556,"38,828"
Department for Education,EDUCATION FUNDING AGENCY,04/09/2012,Grants,Converter Academies,Byrchall High School,Public Sector,"Grants paid to organisations including agencies, arms length bodies and educational establishments",PAYBACSAUTO 34579,"37,954"
Department for Education,EDUCATION FUNDING AGENCY,04/09/2012,Grants,Sponsored Academies,The Co-operative Academy of Leeds,Public Sector,"Grants paid to organisations including agencies, arms length bodies and educational establishments",PAYBACSAUTO 34462,"37,125"
Department for Education,EDUCATION FUNDING AGENCY,04/09/2012,Grants,Converter Academies,Newent Community School and Sixth Fo,Public Sector,"Grants paid to organisations including agencies, arms length bodies and educational establishments",PAYBACSAUTO 34529,"36,800"
Department for Education,EDUCATION FUNDING AGENCY,04/09/2012,Grants,Converter Academies,The Thomas Cowley High School Ltd,Public Sector,"Grants paid to organisations including agencies, arms length bodies and educational establishments",PAYBACSAUTO 34574,"35,969"
Department for Education,EDUCATION FUNDING AGENCY,04/09/2012,Grants,Converter Academies,St Michael's Catholic Secondary Scho,Public Sector,"Grants paid to organisations including agencies, arms length bodies and educational establishments",PAYBACSAUTO 34567,"35,573"
Department for Education,EDUCATION FUNDING AGENCY,04/09/2012,Grants,Converter Academies,Rosewood Free School,Public Sector,"Grants paid to organisations including agencies, arms length bodies and educational establishments",PAYBACSAUTO 34551,"35,440"
Department for Education,EDUCATION FUNDING AGENCY,04/09/2012,Grants,Converter Academies,The Faber Catholic Primary School,Public Sector,"Grants paid to organisations including agencies, arms length bodies and educational establishments",PAYBACSAUTO 34580,"35,364"
Department for Education,EDUCATION FUNDING AGENCY,04/09/2012,Grants,Converter Academies,Ormesby School,Public Sector,"Grants paid to organisations including agencies, arms length bodies and educational establishments",PAYBACSAUTO 34543,"34,865"
Department for Education,EDUCATION FUNDING AGENCY,04/09/2012,Grants,Converter Academies,Flegg High School,Public Sector,"Grants paid to organisations including agencies, arms length bodies and educational establishments",PAYBACSAUTO 34481,"34,728"
Department for Education,EDUCATION FUNDING AGENCY,04/09/2012,Grants,Converter Academies,The County High School Leftwich,Public Sector,"Grants paid to organisations including agencies, arms length bodies and educational establishments",PAYBACSAUTO 34576,"34,537"
Department for Education,EDUCATION FUNDING AGENCY,04/09/2012,Grants,Sponsored Academies,The Samuel Ryder Academy,Public Sector,"Grants paid to organisations including agencies, arms length bodies and educational establishments",PAYBACSAUTO 34582,"34,289"
Department for Education,EDUCATION FUNDING AGENCY,04/09/2012,Grants,Sponsored Academies,Orchard School Bristol,Public Sector,"Grants paid to organisations including agencies, arms length bodies and educational establishments",PAYBACSAUTO 34542,"34,241"
Department for Education,EDUCATION FUNDING AGENCY,04/09/2012,Grants,Sponsored Academies,Harris Academy Greenwich,Public Sector,"Grants paid to organisations including agencies, arms length bodies and educational establishments",PAYBACSAUTO 34496,"33,995"
Department for Education,EDUCATION FUNDING AGENCY,04/09/2012,Grants,Converter Academies,Christow Primary School Academy,Public Sector,"Grants paid to organisations including agencies, arms length bodies and educational establishments",PAYBACSAUTO 34455,"33,823"
Department for Education,EDUCATION FUNDING AGENCY,04/09/2012,Grants,Sponsored Academies,Oasis Academy Nunsthorpe,Public Sector,"Grants paid to organisations including agencies, arms length bodies and educational establishments",PAYBACSAUTO 34537,"32,882"
Department for Education,EDUCATION FUNDING AGENCY,04/09/2012,Grants,Converter Academies,Old Basford School,Public Sector,"Grants paid to organisations including agencies, arms length bodies and educational establishments",PAYBACSAUTO 34540,"32,417"
Department for Education,EDUCATION FUNDING AGENCY,04/09/2012,Grants,Converter Academies,The Painsley Catholic Academy,Public Sector,"Grants paid to organisations including agencies, arms length bodies and educational establishments",PAYBACSAUTO 34544,"32,396"
Department for Education,EDUCATION FUNDING AGENCY,04/09/2012,Grants,Converter Academies,KING JAMES'S SCHOOL,Public Sector,"Grants paid to organisations including agencies, arms length bodies and educational establishments",PAYBACSAUTO 34511,"32,299"
Department for Education,EDUCATION FUNDING AGENCY,04/09/2012,Grants,Converter Academies,St Michael's Catholic Secondary Scho,Public Sector,"Grants paid to organisations including agencies, arms length bodies and educational establishments",PAYBACSAUTO 34567,"31,362"
Department for Education,EDUCATION FUNDING AGENCY,04/09/2012,Grants,Sponsored Academies,Bridgwater College Academy,Public Sector,"Grants paid to organisations including agencies, arms length bodies and educational establishments",PAYBACSAUTO 34445,"30,985"
Department for Education,EDUCATION FUNDING AGENCY,04/09/2012,Grants,Converter Academies,"Rawlett School, an AET Academy",Public Sector,"Grants paid to organisations including agencies, arms length bodies and educational establishments",PAYBACSAUTO 34550,"30,145"
Department for Education,EDUCATION FUNDING AGENCY,04/09/2012,Grants,Converter Academies,ARK Putney Academy,Public Sector,"Grants paid to organisations including agencies, arms length bodies and educational establishments",PAYBACSAUTO 34473,"30,139"
Department for Education,EDUCATION FUNDING AGENCY,04/09/2012,Grants,Converter Academies,Tollbar Multi Academy Trust,Public Sector,"Grants paid to organisations including agencies, arms length bodies and educational establishments",PAYBACSAUTO 34588,"30,138"
Department for Education,EDUCATION FUNDING AGENCY,04/09/2012,Grants,Converter Academies,George Dixon Academy,Public Sector,"Grants paid to organisations including agencies, arms length bodies and educational establishments",PAYBACSAUTO 34483,"29,838"
Department for Education,EDUCATION FUNDING AGENCY,04/09/2012,Grants,Converter Academies,Lion Academy Trust T/A Barclay Prima,Public Sector,"Grants paid to organisations including agencies, arms length bodies and educational establishments",PAYBACSAUTO 34433,"29,678"
Department for Education,EDUCATION FUNDING AGENCY,04/09/2012,Grants,Converter Academies,Copthall School,Public Sector,"Grants paid to organisations including agencies, arms length bodies and educational establishments",PAYBACSAUTO 34463,"29,649"
Department for Education,EDUCATION FUNDING AGENCY,04/09/2012,Grants,Converter Academies,Perry Beeches II - The Free School,Public Sector,"Grants paid to organisations including agencies, arms length bodies and educational establishments",PAYBACSAUTO 34546,"29,615"
Department for Education,EDUCATION FUNDING AGENCY,04/09/2012,Grants,Converter Academies,Hogsthorpe Primary Academy,Public Sector,"Grants paid to organisations including agencies, arms length bodies and educational establishments",PAYBACSAUTO 34503,"28,901"
Department for Education,EDUCATION FUNDING AGENCY,04/09/2012,Grants,Sponsored Academies,Sir Herbert Leon Academy,Public Sector,"Grants paid to organisations including agencies, arms length bodies and educational establishments",PAYBACSAUTO 34556,"28,747"
Department for Education,EDUCATION FUNDING AGENCY,04/09/2012,Grants,Converter Academies,Long Field School,Public Sector,"Grants paid to organisations including agencies, arms length bodies and educational establishments",PAYBACSAUTO 34516,"28,335"
Department for Education,EDUCATION FUNDING AGENCY,04/09/2012,Grants,Converter Secondary Schools In-year openers,William Lovell Church of England Sch,Public Sector,"Grants paid to organisations including agencies, arms length bodies and educational establishments",PAYBACSAUTO 34595,"28,013"
Department for Education,EDUCATION FUNDING AGENCY,04/09/2012,Grants,Converter Academies,NISHKAM HIGH SCHOOL,Public Sector,"Grants paid to organisations including agencies, arms length bodies and educational establishments",PAYBACSAUTO 34532,"27,661"
Department for Education,EDUCATION FUNDING AGENCY,04/09/2012,Grants,Converter Academies,The Matthew Arnold School,Public Sector,"Grants paid to organisations including agencies, arms length bodies and educational establishments",PAYBACSAUTO 34519,"27,473"
Department for Education,EDUCATION FUNDING AGENCY,04/09/2012,Grants,Converter Academies,The Green Way Academy,Public Sector,"Grants paid to organisations including agencies, arms length bodies and educational establishments",PAYBACSAUTO 34492,"27,336"
Department for Education,EDUCATION FUNDING AGENCY,04/09/2012,Grants,Sponsored Academies,The Purston E-ACT Academy,Public Sector,"Grants paid to organisations including agencies, arms length bodies and educational establishments",PAYBACSAUTO 34581,"26,563"
Department for Education,EDUCATION FUNDING AGENCY,04/09/2012,Grants,Converter Academies,Latchmere School,Public Sector,"Grants paid to organisations including agencies, arms length bodies and educational establishments",PAYBACSAUTO 34514,"26,213"
Department for Education,EDUCATION FUNDING AGENCY,04/09/2012,Grants,Converter Academies,Boston Witham Academies Federation,Public Sector,"Grants paid to organisations including agencies, arms length bodies and educational establishments",PAYBACSAUTO 34441,"26,061"
Department for Education,EDUCATION FUNDING AGENCY,04/09/2012,Grants,Converter Academies,ACLE ACADEMY,Public Sector,"Grants paid to organisations including agencies, arms length bodies and educational establishments",PAYBACSAUTO 34428,"25,975"
Department for Education,EDUCATION FUNDING AGENCY,04/09/2012,Grants,Converter Academies,The Milford Academy,Public Sector,"Grants paid to organisations including agencies, arms length bodies and educational establishments",PAYBACSAUTO 34523,"25,954"
Department for Education,EDUCATION FUNDING AGENCY,04/09/2012,Grants,Converter Academies,Greenwood Academies Trust,Public Sector,"Grants paid to organisations including agencies, arms length bodies and educational establishments",PAYBACSAUTO 34510,"25,913"
Department for Education,EDUCATION FUNDING AGENCY,04/09/2012,Grants,Sponsored Academies,West Walsall E-ACT Academy,Public Sector,"Grants paid to organisations including agencies, arms length bodies and educational establishments",PAYBACSAUTO 34594,"25,828"
Department for Education,EDUCATION FUNDING AGENCY,04/09/2012,Grants,Converter Academies,Dixons Music Primary,Public Sector,"Grants paid to organisations including agencies, arms length bodies and educational establishments",PAYBACSAUTO 34470,"25,713"
Department for Education,EDUCATION FUNDING AGENCY,04/09/2012,Grants,Sponsored Academies,The Dolphin Academy,Public Sector,"Grants paid to organisations including agencies, arms length bodies and educational establishments",PAYBACSAUTO 34584,"25,640"
Department for Education,EDUCATION FUNDING AGENCY,04/09/2012,Grants,Converter Academies,Boston Witham Academies Federation,Public Sector,"Grants paid to organisations including agencies, arms length bodies and educational establishments",PAYBACSAUTO 34442,"25,437"
Department for Education,EDUCATION FUNDING AGENCY,04/09/2012,Grants,Sponsored Academies,ARK Kings Academy,Public Sector,"Grants paid to organisations including agencies, arms length bodies and educational establishments",PAYBACSAUTO 34429,"25,400"
Department for Education,EDUCATION FUNDING AGENCY,04/09/2012,Grants,Sponsored Academies,"Noel Park Primary School, An AET Aca",Public Sector,"Grants paid to organisations including agencies, arms length bodies and educational establishments",PAYBACSAUTO 34533,"25,171"
Department for Education,EDUCATION FUNDING AGENCY,04/09/2012,Grants,Sponsored Academies,ARK Rose Primary Academy,Public Sector,"Grants paid to organisations including agencies, arms length bodies and educational establishments",PAYBACSAUTO 34430,"25,000"
Department for Education,EDUCATION FUNDING AGENCY,04/09/2012,Grants,Sponsored Academies,Barton Hill Academy,Public Sector,"Grants paid to organisations including agencies, arms length bodies and educational establishments",PAYBACSAUTO 34434,"25,000"
Department for Education,EDUCATION FUNDING AGENCY,04/09/2012,Grants,Sponsored Academies,Berrygrove Academy,Public Sector,"Grants paid to organisations including agencies, arms length bodies and educational establishments",PAYBACSAUTO 34439,"25,000"
Department for Education,EDUCATION FUNDING AGENCY,04/09/2012,Grants,Sponsored Academies,Harris Primary Academy Coleraine Par,Public Sector,"Grants paid to organisations including agencies, arms length bodies and educational establishments",PAYBACSAUTO 34497,"25,000"
Department for Education,EDUCATION FUNDING AGENCY,04/09/2012,Grants,Sponsored Academies,CfBT Schools Trust trading as Meadow,Public Sector,"Grants paid to organisations including agencies, arms length bodies and educational establishments",PAYBACSAUTO 34520,"25,000"
Department for Education,EDUCATION FUNDING AGENCY,04/09/2012,Grants,Sponsored Academies,"Noel Park Primary School, An AET Aca",Public Sector,"Grants paid to organisations including agencies, arms length bodies and educational establishments",PAYBACSAUTO 34533,"25,000"
Department for Education,EDUCATION FUNDING AGENCY,04/09/2012,Grants,Sponsored Academies,Oasis Academy Connaught,Public Sector,"Grants paid to organisations including agencies, arms length bodies and educational establishments",PAYBACSAUTO 34538,"25,000"
Department for Education,EDUCATION FUNDING AGENCY,04/09/2012,Grants,Sponsored Academies,Trinity Primary Academy,Public Sector,"Grants paid to organisations including agencies, arms length bodies and educational establishments",PAYBACSAUTO 34589,"25,000"
Department for Education,EDUCATION FUNDING AGENCY,04/09/2012,Grants,Sponsored Academies,The Purston E-ACT Academy,Public Sector,"Grants paid to organisations including agencies, arms length bodies and educational establishments",PAYBACSAUTO 34581,"24,963"
Department for Education,EDUCATION FUNDING AGENCY,04/09/2012,Grants,Converter Academies,Cleeve Park School,Public Sector,"Grants paid to organisations including agencies, arms length bodies and educational establishments",PAYBACSAUTO 34459,"24,879"
Department for Education,EDUCATION FUNDING AGENCY,04/09/2012,Grants,Converter Academies,Colston's Primary School,Public Sector,"Grants paid to organisations including agencies, arms length bodies and educational establishments",PAYBACSAUTO 34460,"24,543"
Department for Education,EDUCATION FUNDING AGENCY,04/09/2012,Grants,Converter Academies,Kenningtons Primary Academy,Public Sector,"Grants paid to organisations including agencies, arms length bodies and educational establishments",PAYBACSAUTO 34509,"24,503"
Department for Education,EDUCATION FUNDING AGENCY,04/09/2012,Grants,Converter Secondary Schools In-year openers,Eggar's School,Public Sector,"Grants paid to organisations including agencies, arms length bodies and educational establishments",PAYBACSAUTO 34472,"24,267"
Department for Education,EDUCATION FUNDING AGENCY,04/09/2012,Grants,Sponsored Academies,King Edward VI Academy,Public Sector,"Grants paid to organisations including agencies, arms length bodies and educational establishments",PAYBACSAUTO 34512,"23,781"
Department for Education,EDUCATION FUNDING AGENCY,04/09/2012,Grants,Converter Academies,Perry Beeches II - The Free School,Public Sector,"Grants paid to organisations including agencies, arms length bodies and educational establishments",PAYBACSAUTO 34546,"23,441"
Department for Education,EDUCATION FUNDING AGENCY,04/09/2012,Grants,Sponsored Academies,Sir Herbert Leon Academy,Public Sector,"Grants paid to organisations including agencies, arms length bodies and educational establishments",PAYBACSAUTO 34556,"22,786"
Department for Education,EDUCATION FUNDING AGENCY,04/09/2012,Grants,Converter Academies,Woodham Academy,Public Sector,"Grants paid to organisations including agencies, arms length bodies and educational establishments",PAYBACSAUTO 34597,"22,649"
Department for Education,EDUCATION FUNDING AGENCY,04/09/2012,Grants,Sponsored Academies,The Purston E-ACT Academy,Public Sector,"Grants paid to organisations including agencies, arms length bodies and educational establishments",PAYBACSAUTO 34581,"22,436"
Department for Education,EDUCATION FUNDING AGENCY,04/09/2012,Grants,Converter Secondary Schools In-year openers,Barnfield Academy Trust,Public Sector,"Grants paid to organisations including agencies, arms length bodies and educational establishments",PAYBACSAUTO 34521,"21,890"
Department for Education,EDUCATION FUNDING AGENCY,04/09/2012,Grants,Converter Academies,Ibstock Community College,Public Sector,"Grants paid to organisations including agencies, arms length bodies and educational establishments",PAYBACSAUTO 34506,"21,640"
Department for Education,EDUCATION FUNDING AGENCY,04/09/2012,Grants,Converter Academies,City Gateway 14-19 Provision,Public Sector,"Grants paid to organisations including agencies, arms length bodies and educational establishments",PAYBACSAUTO 34458,"21,068"
Department for Education,EDUCATION FUNDING AGENCY,04/09/2012,Programme Costs,Converter Academies,The Hill,Commercial,Funding to external organisations to deliver policies (excluding consultancy),PAYBACSAUTO 34577,"20,699"
Department for Education,EDUCATION FUNDING AGENCY,04/09/2012,Grants,Converter Academies,The Kemnal Academies Trust - Bridgem,Public Sector,"Grants paid to organisations including agencies, arms length bodies and educational establishments",PAYBACSAUTO 34444,"20,516"
Department for Education,EDUCATION FUNDING AGENCY,04/09/2012,Grants,Sponsored Academies,Blue Coat CofE Academy Walsall,Public Sector,"Grants paid to organisations including agencies, arms length bodies and educational establishments",PAYBACSAUTO 34440,"20,256"
Department for Education,EDUCATION FUNDING AGENCY,04/09/2012,Grants,Sponsored Academies,West Walsall E-ACT Academy,Public Sector,"Grants paid to organisations including agencies, arms length bodies and educational establishments",PAYBACSAUTO 34594,"19,990"
Department for Education,EDUCATION FUNDING AGENCY,04/09/2012,Grants,Sponsored Academies,Orchard School Bristol,Public Sector,"Grants paid to organisations including agencies, arms length bodies and educational establishments",PAYBACSAUTO 34542,"19,458"
Department for Education,EDUCATION FUNDING AGENCY,04/09/2012,Grants,Converter Academies,City Gateway 14-19 Provision,Public Sector,"Grants paid to organisations including agencies, arms length bodies and educational establishments",PAYBACSAUTO 34458,"19,447"
Department for Education,EDUCATION FUNDING AGENCY,04/09/2012,Grants,Converter Academies,Greenwood Academies Trust,Public Sector,"Grants paid to organisations including agencies, arms length bodies and educational establishments",PAYBACSAUTO 34518,"19,244"
Department for Education,EDUCATION FUNDING AGENCY,04/09/2012,Grants,Sponsored Academies,King Edward VI Academy,Public Sector,"Grants paid to organisations including agencies, arms length bodies and educational establishments",PAYBACSAUTO 34512,"19,185"
Department for Education,EDUCATION FUNDING AGENCY,04/09/2012,Grants,Converter Academies,New Forest Academy,Public Sector,"Grants paid to organisations including agencies, arms length bodies and educational establishments",PAYBACSAUTO 34530,"19,114"
Department for Education,EDUCATION FUNDING AGENCY,04/09/2012,Grants,Sponsored Academies,Barton Hill Academy,Public Sector,"Grants paid to organisations including agencies, arms length bodies and educational establishments",PAYBACSAUTO 34434,"18,734"
Department for Education,EDUCATION FUNDING AGENCY,04/09/2012,Grants,Converter Academies,KING JAMES'S SCHOOL,Public Sector,"Grants paid to organisations including agencies, arms length bodies and educational establishments",PAYBACSAUTO 34511,"18,653"
Department for Education,EDUCATION FUNDING AGENCY,04/09/2012,Grants,Sponsored Academies,Oasis Academy Connaught,Public Sector,"Grants paid to organisations including agencies, arms length bodies and educational establishments",PAYBACSAUTO 34538,"18,465"
Department for Education,EDUCATION FUNDING AGENCY,04/09/2012,Grants,Converter Academies,City Gateway 14-19 Provision,Public Sector,"Grants paid to organisations including agencies, arms length bodies and educational establishments",PAYBACSAUTO 34458,"18,348"
Department for Education,EDUCATION FUNDING AGENCY,04/09/2012,Grants,Converter Academies,BEACON HILL ACADEMY,Public Sector,"Grants paid to organisations including agencies, arms length bodies and educational establishments",PAYBACSAUTO 34435,"18,260"
Department for Education,EDUCATION FUNDING AGENCY,04/09/2012,Grants,Sponsored Academies,Trinity Primary Academy,Public Sector,"Grants paid to organisations including agencies, arms length bodies and educational establishments",PAYBACSAUTO 34589,"18,193"
Department for Education,EDUCATION FUNDING AGENCY,04/09/2012,Grants,Converter Academies,Welbeck Academy,Public Sector,"Grants paid to organisations including agencies, arms length bodies and educational establishments",PAYBACSAUTO 34590,"17,908"
Department for Education,EDUCATION FUNDING AGENCY,04/09/2012,Grants,Converter Academies,Wyvern Academy,Public Sector,"Grants paid to organisations including agencies, arms length bodies and educational establishments",PAYBACSAUTO 34598,"17,899"
Department for Education,EDUCATION FUNDING AGENCY,04/09/2012,Grants,Converter Academies,School Partnership Trust Academies -,VCS,Grants to third sector organisations / not for profit organisations,PAYBACSAUTO 34477,"17,716"
Department for Education,EDUCATION FUNDING AGENCY,04/09/2012,Grants,Sponsored Academies,King Edward VI Academy,Public Sector,"Grants paid to organisations including agencies, arms length bodies and educational establishments",PAYBACSAUTO 34512,"17,696"
Department for Education,EDUCATION FUNDING AGENCY,04/09/2012,Grants,Sponsored Academies,Harris Primary Academy Coleraine Par,Public Sector,"Grants paid to organisations including agencies, arms length bodies and educational establishments",PAYBACSAUTO 34497,"17,604"
Department for Education,EDUCATION FUNDING AGENCY,04/09/2012,Grants,Converter Academies,Greenfield E-ACT Primary Academy,Public Sector,"Grants paid to organisations including agencies, arms length bodies and educational establishments",PAYBACSAUTO 34487,"17,508"
Department for Education,EDUCATION FUNDING AGENCY,04/09/2012,Grants,Converter Academies,Greenwood Academies Trust,Public Sector,"Grants paid to organisations including agencies, arms length bodies and educational establishments",PAYBACSAUTO 34558,"17,469"
Department for Education,EDUCATION FUNDING AGENCY,04/09/2012,Grants,Converter Academies,Southway Primary,Public Sector,"Grants paid to organisations including agencies, arms length bodies and educational establishments",PAYBACSAUTO 34560,"17,378"
Department for Education,EDUCATION FUNDING AGENCY,04/09/2012,Grants,Converter Academies,Millbank Academy,Public Sector,"Grants paid to organisations including agencies, arms length bodies and educational establishments",PAYBACSAUTO 34522,"17,297"
Department for Education,EDUCATION FUNDING AGENCY,04/09/2012,Grants,Converter Academies,Hall Road Academy,Public Sector,"Grants paid to organisations including agencies, arms length bodies and educational establishments",PAYBACSAUTO 34494,"17,150"
Department for Education,EDUCATION FUNDING AGENCY,04/09/2012,Grants,Converter Academies,North Hykeham Ling Moor Primary Scho,Public Sector,"Grants paid to organisations including agencies, arms length bodies and educational establishments",PAYBACSAUTO 34534,"16,939"
Department for Education,EDUCATION FUNDING AGENCY,04/09/2012,Grants,Converter Academies,Norbreck Primary Academy,Public Sector,"Grants paid to organisations including agencies, arms length bodies and educational establishments",PAYBACSAUTO 34535,"16,930"
Department for Education,EDUCATION FUNDING AGENCY,04/09/2012,Grants,Sponsored Academies,Berrygrove Academy,Public Sector,"Grants paid to organisations including agencies, arms length bodies and educational establishments",PAYBACSAUTO 34439,"16,863"
Department for Education,EDUCATION FUNDING AGENCY,04/09/2012,Grants,Sponsored Academies,Gillbrook Academy,Public Sector,"Grants paid to organisations including agencies, arms length bodies and educational establishments",PAYBACSAUTO 34484,"16,244"
Department for Education,EDUCATION FUNDING AGENCY,04/09/2012,Grants,Converter Academies,Dixons Music Primary,Public Sector,"Grants paid to organisations including agencies, arms length bodies and educational establishments",PAYBACSAUTO 34470,"16,228"
Department for Education,EDUCATION FUNDING AGENCY,04/09/2012,Grants,Converter Academies,Greenwood Academies Trust,Public Sector,"Grants paid to organisations including agencies, arms length bodies and educational establishments",PAYBACSAUTO 34557,"16,105"
Department for Education,EDUCATION FUNDING AGENCY,04/09/2012,Grants,Converter Academies,Glendene Arts Academy,Public Sector,"Grants paid to organisations including agencies, arms length bodies and educational establishments",PAYBACSAUTO 34485,"15,887"
Department for Education,EDUCATION FUNDING AGENCY,04/09/2012,Programme Costs,Converter Academies,Armthorpe Shaw Wood Academy Ltd,Commercial,Funding to external organisations to deliver policies (excluding consultancy),PAYBACSAUTO 34554,"15,764"
Department for Education,EDUCATION FUNDING AGENCY,04/09/2012,Grants,Converter Academies,Ellison Boulters Church of England A,Public Sector,"Grants paid to organisations including agencies, arms length bodies and educational establishments",PAYBACSAUTO 34474,"15,703"
Department for Education,EDUCATION FUNDING AGENCY,04/09/2012,Grants,Converter Academies,MINERVA PRIMARY ACADEMY,Public Sector,"Grants paid to organisations including agencies, arms length bodies and educational establishments",PAYBACSAUTO 34502,"15,621"
Department for Education,EDUCATION FUNDING AGENCY,04/09/2012,Grants,Converter Academies,Reedswood E-ACT Primary School,Public Sector,"Grants paid to organisations including agencies, arms length bodies and educational establishments",PAYBACSAUTO 34438,"15,434"
Department for Education,EDUCATION FUNDING AGENCY,04/09/2012,Grants,Converter Secondary Schools In-year openers,Beis Yaakov Jewish High School Acade,Public Sector,"Grants paid to organisations including agencies, arms length bodies and educational establishments",PAYBACSAUTO 34436,"15,065"
Department for Education,EDUCATION FUNDING AGENCY,04/09/2012,Grants,Converter Academies,Godolphin Infant School,Public Sector,"Grants paid to organisations including agencies, arms length bodies and educational establishments",PAYBACSAUTO 34486,"14,769"
Department for Education,EDUCATION FUNDING AGENCY,04/09/2012,Grants,Converter Academies,Frome Vale Academy,Public Sector,"Grants paid to organisations including agencies, arms length bodies and educational establishments",PAYBACSAUTO 34541,"14,477"
Department for Education,EDUCATION FUNDING AGENCY,04/09/2012,Grants,Converter Academies,HERONS' MOOR ACADEMY TRUST,Public Sector,"Grants paid to organisations including agencies, arms length bodies and educational establishments",PAYBACSAUTO 34500,"14,244"
Department for Education,EDUCATION FUNDING AGENCY,04/09/2012,Grants,Converter Academies,Highgate Academy,Public Sector,"Grants paid to organisations including agencies, arms length bodies and educational establishments",PAYBACSAUTO 34467,"14,240"
Department for Education,EDUCATION FUNDING AGENCY,04/09/2012,Grants,Converter Academies,THAMES VIEW INFANTS,Public Sector,"Grants paid to organisations including agencies, arms length bodies and educational establishments",PAYBACSAUTO 34573,"14,166"
Department for Education,EDUCATION FUNDING AGENCY,04/09/2012,Grants,Converter Academies,Newington Academy,Public Sector,"Grants paid to organisations including agencies, arms length bodies and educational establishments",PAYBACSAUTO 34531,"14,064"
Department for Education,EDUCATION FUNDING AGENCY,04/09/2012,Grants,Sponsored Academies,Peak Academy,Public Sector,"Grants paid to organisations including agencies, arms length bodies and educational establishments",PAYBACSAUTO 34545,"13,880"
Department for Education,EDUCATION FUNDING AGENCY,04/09/2012,Grants,Converter Academies,Carrfield Academy,Public Sector,"Grants paid to organisations including agencies, arms length bodies and educational establishments",PAYBACSAUTO 34466,"13,565"
Department for Education,EDUCATION FUNDING AGENCY,04/09/2012,Grants,Sponsored Academies,Green Field Academy,Public Sector,"Grants paid to organisations including agencies, arms length bodies and educational establishments",PAYBACSAUTO 34493,"12,618"
Department for Education,EDUCATION FUNDING AGENCY,04/09/2012,Grants,Sponsored Academies,Charles Warren Academy,Public Sector,"Grants paid to organisations including agencies, arms length bodies and educational establishments",PAYBACSAUTO 34451,"12,500"
Department for Education,EDUCATION FUNDING AGENCY,04/09/2012,Grants,Sponsored Academies,Radburn Primary School,Public Sector,"Grants paid to organisations including agencies, arms length bodies and educational establishments",PAYBACSAUTO 34549,"12,500"
Department for Education,EDUCATION FUNDING AGENCY,04/09/2012,Grants,Sponsored Academies,Severn View Academy,Public Sector,"Grants paid to organisations including agencies, arms length bodies and educational establishments",PAYBACSAUTO 34553,"12,500"
Department for Education,EDUCATION FUNDING AGENCY,04/09/2012,Grants,Sponsored Academies,Portsmouth & Winchester Diocesan Aca,Public Sector,"Grants paid to organisations including agencies, arms length bodies and educational establishments",PAYBACSAUTO 34562,"12,500"
Department for Education,EDUCATION FUNDING AGENCY,04/09/2012,Grants,Converter Academies,Northern Education Trust - Ryecroft,Public Sector,"Grants paid to organisations including agencies, arms length bodies and educational establishments",PAYBACSAUTO 34552,"12,218"
Department for Education,EDUCATION FUNDING AGENCY,04/09/2012,Grants,Converter Academies,Hook-with-Warsash Church Of England,Public Sector,"Grants paid to organisations including agencies, arms length bodies and educational establishments",PAYBACSAUTO 34504,"11,977"
Department for Education,EDUCATION FUNDING AGENCY,04/09/2012,Grants,Converter Academies,CET Primary School Westminster,Public Sector,"Grants paid to organisations including agencies, arms length bodies and educational establishments",PAYBACSAUTO 34449,"11,784"
Department for Education,EDUCATION FUNDING AGENCY,04/09/2012,Grants,Converter Academies,Percy Shurmer Academy,Public Sector,"Grants paid to organisations including agencies, arms length bodies and educational establishments",PAYBACSAUTO 34547,"11,608"
Department for Education,EDUCATION FUNDING AGENCY,04/09/2012,Grants,Converter Academies,Oasis Academy New Oak,Public Sector,"Grants paid to organisations including agencies, arms length bodies and educational establishments",PAYBACSAUTO 34528,"11,556"
Department for Education,EDUCATION FUNDING AGENCY,04/09/2012,Grants,Converter Academies,Shipston High School,Public Sector,"Grants paid to organisations including agencies, arms length bodies and educational establishments",PAYBACSAUTO 34555,"11,499"
Department for Education,EDUCATION FUNDING AGENCY,04/09/2012,Grants,Sponsored Academies,CfBT Schools Trust T/A Queensbury Ac,Public Sector,"Grants paid to organisations including agencies, arms length bodies and educational establishments",PAYBACSAUTO 34548,"11,417"
Department for Education,EDUCATION FUNDING AGENCY,04/09/2012,Grants,Sponsored Academies,CfBT Schools Trust trading as Meadow,Public Sector,"Grants paid to organisations including agencies, arms length bodies and educational establishments",PAYBACSAUTO 34520,"11,295"
Department for Education,EDUCATION FUNDING AGENCY,04/09/2012,Grants,Converter Academies,Danetree Junior School,Public Sector,"Grants paid to organisations including agencies, arms length bodies and educational establishments",PAYBACSAUTO 34465,"11,225"
Department for Education,EDUCATION FUNDING AGENCY,04/09/2012,Grants,Converter Academies,The Stour Academy Trust:  Sturry CE,Public Sector,"Grants paid to organisations including agencies, arms length bodies and educational establishments",PAYBACSAUTO 34572,"11,195"
Department for Education,EDUCATION FUNDING AGENCY,04/09/2012,Grants,Converter Academies,Great Barr Primary School,Public Sector,"Grants paid to organisations including agencies, arms length bodies and educational establishments",PAYBACSAUTO 34489,"11,108"
Department for Education,EDUCATION FUNDING AGENCY,04/09/2012,Grants,Sponsored Academies,The Ridge Academy,Public Sector,"Grants paid to organisations including agencies, arms length bodies and educational establishments",PAYBACSAUTO 34583,"11,104"
Department for Education,EDUCATION FUNDING AGENCY,04/09/2012,Grants,Converter Academies,Epworth Primary Academy,Public Sector,"Grants paid to organisations including agencies, arms length bodies and educational establishments",PAYBACSAUTO 34476,"10,942"
Department for Education,EDUCATION FUNDING AGENCY,04/09/2012,Grants,Converter Academies,OASIS ACADEMY BANK LEAZE,Public Sector,"Grants paid to organisations including agencies, arms length bodies and educational establishments",PAYBACSAUTO 34432,"10,852"
Department for Education,EDUCATION FUNDING AGENCY,04/09/2012,Grants,Sponsored Academies,Chaucer School,Public Sector,"Grants paid to organisations including agencies, arms length bodies and educational establishments",PAYBACSAUTO 34450,"10,624"
Department for Education,EDUCATION FUNDING AGENCY,04/09/2012,Grants,Sponsored Academies,ARK Kings Academy,Public Sector,"Grants paid to organisations including agencies, arms length bodies and educational establishments",PAYBACSAUTO 34429,"10,602"
Department for Education,EDUCATION FUNDING AGENCY,04/09/2012,Grants,Sponsored Academies,Gillbrook Academy,Public Sector,"Grants paid to organisations including agencies, arms length bodies and educational establishments",PAYBACSAUTO 34484,"10,322"
Department for Education,EDUCATION FUNDING AGENCY,04/09/2012,Grants,Sponsored Academies,Barton Hill Academy,Public Sector,"Grants paid to organisations including agencies, arms length bodies and educational establishments",PAYBACSAUTO 34434,"10,168"
Department for Education,EDUCATION FUNDING AGENCY,04/09/2012,Grants,Converter Academies,ARK Tindal Primary Academy,Public Sector,"Grants paid to organisations including agencies, arms length bodies and educational establishments",PAYBACSAUTO 34586,"9,628"
Department for Education,EDUCATION FUNDING AGENCY,04/09/2012,Grants,Converter Academies,GREENHOLM SCHOOL,Public Sector,"Grants paid to organisations including agencies, arms length bodies and educational establishments",PAYBACSAUTO 34490,"9,540"
Department for Education,EDUCATION FUNDING AGENCY,04/09/2012,Grants,Converter Academies,WAKEFIELD DIOCESAN ACADEMIES TRUST,Public Sector,"Grants paid to organisations including agencies, arms length bodies and educational establishments",PAYBACSAUTO 34456,"9,118"
Department for Education,EDUCATION FUNDING AGENCY,04/09/2012,Grants,Converter Academies,Moorhead Primary School,Public Sector,"Grants paid to organisations including agencies, arms length bodies and educational establishments",PAYBACSAUTO 34524,"9,100"
Department for Education,EDUCATION FUNDING AGENCY,04/09/2012,Grants,Converter Academies,Equitas Academy Trust,VCS,Grants to third sector organisations / not for profit organisations,PAYBACSAUTO 34453,"8,999"
Department for Education,EDUCATION FUNDING AGENCY,04/09/2012,Grants,Converter Academies,Lee Chapel Academy Trust t/a G,Public Sector,"Grants paid to organisations including agencies, arms length bodies and educational establishments",PAYBACSAUTO 34488,"8,871"
Department for Education,EDUCATION FUNDING AGENCY,04/09/2012,Grants,Converter Academies,Perry Beeches II - The Free School,Public Sector,"Grants paid to organisations including agencies, arms length bodies and educational establishments",PAYBACSAUTO 34546,"8,832"
Department for Education,EDUCATION FUNDING AGENCY,04/09/2012,Grants,Converter Academies,Kelsall Primary School,Public Sector,"Grants paid to organisations including agencies, arms length bodies and educational establishments",PAYBACSAUTO 34508,"8,527"
Department for Education,EDUCATION FUNDING AGENCY,04/09/2012,Grants,Converter Academies,Hornbeam Academy Trust,Public Sector,"Grants paid to organisations including agencies, arms length bodies and educational establishments",PAYBACSAUTO 34447,"8,407"
Department for Education,EDUCATION FUNDING AGENCY,04/09/2012,Grants,Converter Academies,Westwoodside C.E. School,Public Sector,"Grants paid to organisations including agencies, arms length bodies and educational establishments",PAYBACSAUTO 34593,"8,342"
Department for Education,EDUCATION FUNDING AGENCY,04/09/2012,Grants,Converter Academies,ARK Bentworth Primary Academy,Public Sector,"Grants paid to organisations including agencies, arms length bodies and educational establishments",PAYBACSAUTO 34437,"8,308"
Department for Education,EDUCATION FUNDING AGENCY,04/09/2012,Grants,Sponsored Academies,Charles Warren Academy,Public Sector,"Grants paid to organisations including agencies, arms length bodies and educational establishments",PAYBACSAUTO 34451,"8,126"
Department for Education,EDUCATION FUNDING AGENCY,04/09/2012,Grants,Sponsored Academies,ARK Rose Primary Academy,Public Sector,"Grants paid to organisations including agencies, arms length bodies and educational establishments",PAYBACSAUTO 34430,"8,100"
Department for Education,EDUCATION FUNDING AGENCY,04/09/2012,Grants,Converter Academies,School Partnership Trust Academies -,VCS,Grants to third sector organisations / not for profit organisations,PAYBACSAUTO 34464,"8,072"
Department for Education,EDUCATION FUNDING AGENCY,04/09/2012,Grants,Converter Academies,The Green Way Academy,Public Sector,"Grants paid to organisations including agencies, arms length bodies and educational establishments",PAYBACSAUTO 34492,"8,036"
Department for Education,EDUCATION FUNDING AGENCY,04/09/2012,Grants,Converter Academies,The Manor C of E School,Public Sector,"Grants paid to organisations including agencies, arms length bodies and educational establishments",PAYBACSAUTO 34578,"8,000"
Department for Education,EDUCATION FUNDING AGENCY,04/09/2012,Grants,Converter Academies,Castle Academy,Public Sector,"Grants paid to organisations including agencies, arms length bodies and educational establishments",PAYBACSAUTO 34461,"7,959"
Department for Education,EDUCATION FUNDING AGENCY,04/09/2012,Grants,Converter Academies,Axbridge C of E First School Academy,Public Sector,"Grants paid to organisations including agencies, arms length bodies and educational establishments",PAYBACSAUTO 34431,"7,794"
Department for Education,EDUCATION FUNDING AGENCY,04/09/2012,Grants,Converter Academies,Windsor Academy Trust t/a Goldsmith,Public Sector,"Grants paid to organisations including agencies, arms length bodies and educational establishments",PAYBACSAUTO 34495,"7,768"
Department for Education,EDUCATION FUNDING AGENCY,04/09/2012,Grants,Converter Academies,Wishmore Cross Academy,Public Sector,"Grants paid to organisations including agencies, arms length bodies and educational establishments",PAYBACSAUTO 34596,"7,331"
Department for Education,EDUCATION FUNDING AGENCY,04/09/2012,Grants,Converter Academies,Rosewood Free School,Public Sector,"Grants paid to organisations including agencies, arms length bodies and educational establishments",PAYBACSAUTO 34551,"7,211"
Department for Education,EDUCATION FUNDING AGENCY,04/09/2012,Grants,Converter Academies,Stoneleigh Primary School,Public Sector,"Grants paid to organisations including agencies, arms length bodies and educational establishments",PAYBACSAUTO 34570,"7,113"
Department for Education,EDUCATION FUNDING AGENCY,04/09/2012,Grants,Converter Academies,OASIS ACADEMY BYRON,Public Sector,"Grants paid to organisations including agencies, arms length bodies and educational establishments",PAYBACSAUTO 34448,"7,033"
Department for Education,EDUCATION FUNDING AGENCY,04/09/2012,Grants,Converter Academies,CET Primary School Westminster,Public Sector,"Grants paid to organisations including agencies, arms length bodies and educational establishments",PAYBACSAUTO 34449,"7,000"
Department for Education,EDUCATION FUNDING AGENCY,04/09/2012,Grants,Converter Academies,Finningley Church of England Primary,Public Sector,"Grants paid to organisations including agencies, arms length bodies and educational establishments",PAYBACSAUTO 34480,"6,854"
Department for Education,EDUCATION FUNDING AGENCY,04/09/2012,Grants,Converter Academies,Greenwood Academies Trust,Public Sector,"Grants paid to organisations including agencies, arms length bodies and educational establishments",PAYBACSAUTO 34507,"6,461"
Department for Education,EDUCATION FUNDING AGENCY,04/09/2012,Grants,Converter Academies,West Malling Church of England Acade,Public Sector,"Grants paid to organisations including agencies, arms length bodies and educational establishments",PAYBACSAUTO 34592,"6,368"
Department for Education,EDUCATION FUNDING AGENCY,04/09/2012,Grants,Sponsored Academies,Severn View Academy,Public Sector,"Grants paid to organisations including agencies, arms length bodies and educational establishments",PAYBACSAUTO 34553,"6,300"
Department for Education,EDUCATION FUNDING AGENCY,04/09/2012,Grants,Converter Academies,City of Peterborough Academy Special,Public Sector,"Grants paid to organisations including agencies, arms length bodies and educational establishments",PAYBACSAUTO 34457,"5,915"
Department for Education,EDUCATION FUNDING AGENCY,04/09/2012,Grants,Converter Academies,St Joseph's Catholic Primary School,Public Sector,"Grants paid to organisations including agencies, arms length bodies and educational establishments",PAYBACSAUTO 34565,"5,913"
Department for Education,EDUCATION FUNDING AGENCY,04/09/2012,Grants,Converter Academies,St Giles Catholic Primary School,Public Sector,"Grants paid to organisations including agencies, arms length bodies and educational establishments",PAYBACSAUTO 34564,"5,887"
Department for Education,EDUCATION FUNDING AGENCY,04/09/2012,Grants,Converter Academies,St Thomas' Catholic Primary School,Public Sector,"Grants paid to organisations including agencies, arms length bodies and educational establishments",PAYBACSAUTO 34571,"5,842"
Department for Education,EDUCATION FUNDING AGENCY,04/09/2012,Grants,Converter Academies,NISHKAM HIGH SCHOOL,Public Sector,"Grants paid to organisations including agencies, arms length bodies and educational establishments",PAYBACSAUTO 34532,"5,757"
Department for Education,EDUCATION FUNDING AGENCY,04/09/2012,Grants,Sponsored Academies,Radburn Primary School,Public Sector,"Grants paid to organisations including agencies, arms length bodies and educational establishments",PAYBACSAUTO 34549,"5,755"
Department for Education,EDUCATION FUNDING AGENCY,04/09/2012,Grants,Converter Academies,St Filumena's Catholic Primary Schoo,Public Sector,"Grants paid to organisations including agencies, arms length bodies and educational establishments",PAYBACSAUTO 34563,"5,721"
Department for Education,EDUCATION FUNDING AGENCY,04/09/2012,Grants,Converter Academies,Elmridge Primary School,Public Sector,"Grants paid to organisations including agencies, arms length bodies and educational establishments",PAYBACSAUTO 34475,"5,681"
Department for Education,EDUCATION FUNDING AGENCY,04/09/2012,Grants,Sponsored Academies,Portsmouth & Winchester Diocesan Aca,Public Sector,"Grants paid to organisations including agencies, arms length bodies and educational establishments",PAYBACSAUTO 34562,"5,550"
Department for Education,EDUCATION FUNDING AGENCY,04/09/2012,Grants,Converter Academies,Nechells E-ACT Primary Academy,Public Sector,"Grants paid to organisations including agencies, arms length bodies and educational establishments",PAYBACSAUTO 34525,"5,525"
Department for Education,EDUCATION FUNDING AGENCY,04/09/2012,Grants,Converter Academies,Boughton Primary School Trust,Public Sector,"Grants paid to organisations including agencies, arms length bodies and educational establishments",PAYBACSAUTO 34443,"5,474"
Department for Education,EDUCATION FUNDING AGENCY,04/09/2012,Grants,Converter Academies,Field Lane Primary School - Brighter,Public Sector,"Grants paid to organisations including agencies, arms length bodies and educational establishments",PAYBACSAUTO 34479,"5,455"
Department for Education,EDUCATION FUNDING AGENCY,04/09/2012,Grants,Converter Academies,St John's C of E Academy Coleford,Public Sector,"Grants paid to organisations including agencies, arms length bodies and educational establishments",PAYBACSAUTO 34566,"5,310"
Department for Education,EDUCATION FUNDING AGENCY,04/09/2012,Grants,Converter Secondary Schools In-year openers,Hertswood Academy,Public Sector,"Grants paid to organisations including agencies, arms length bodies and educational establishments",PAYBACSAUTO 34499,"5,226"
Department for Education,EDUCATION FUNDING AGENCY,04/09/2012,Grants,Converter Academies,Armthorpe Shaw Wood Academy Ltd,Commercial,"Grants paid to organisations including agencies, arms length bodies and educational establishments",PAYBACSAUTO 34554,"5,174"
Department for Education,EDUCATION FUNDING AGENCY,04/09/2012,Grants,Converter Academies,Brockworth Primary Academy,Public Sector,"Grants paid to organisations including agencies, arms length bodies and educational establishments",PAYBACSAUTO 34446,"5,104"
Department for Education,EDUCATION FUNDING AGENCY,04/09/2012,Grants,Sponsored Academies,CfBT Schools Trust trading as Meadow,Public Sector,"Grants paid to organisations including agencies, arms length bodies and educational establishments",PAYBACSAUTO 34520,"5,100"
Department for Education,EDUCATION FUNDING AGENCY,04/09/2012,Grants,Sponsored Academies,ARK Rose Primary Academy,Public Sector,"Grants paid to organisations including agencies, arms length bodies and educational establishments",PAYBACSAUTO 34430,"5,032"
Department for Education,EDUCATION FUNDING AGENCY,04/09/2012,Grants,Converter Academies,St Birinus School,Public Sector,"Grants paid to organisations including agencies, arms length bodies and educational establishments",PAYBACSAUTO 34561,"4,909"
Department for Education,EDUCATION FUNDING AGENCY,04/09/2012,Grants,Converter Academies,St Mary's Catholic Primary School,Public Sector,"Grants paid to organisations including agencies, arms length bodies and educational establishments",PAYBACSAUTO 34568,"4,830"
Department for Education,EDUCATION FUNDING AGENCY,04/09/2012,Grants,Converter Academies,NISHKAM HIGH SCHOOL,Public Sector,"Grants paid to organisations including agencies, arms length bodies and educational establishments",PAYBACSAUTO 34532,"4,788"
Department for Education,EDUCATION FUNDING AGENCY,04/09/2012,Grants,Converter Academies,THE DEAN TRUST - FOREST  GATE ACADEM,Public Sector,"Grants paid to organisations including agencies, arms length bodies and educational establishments",PAYBACSAUTO 34482,"4,611"
Department for Education,EDUCATION FUNDING AGENCY,04/09/2012,Grants,Converter Academies,Chingford Foundation School,Public Sector,"Grants paid to organisations including agencies, arms length bodies and educational establishments",PAYBACSAUTO 34452,"4,595"
Department for Education,EDUCATION FUNDING AGENCY,04/09/2012,Grants,Converter Academies,Gretton Primary,Public Sector,"Grants paid to organisations including agencies, arms length bodies and educational establishments",PAYBACSAUTO 34491,"4,561"
Department for Education,EDUCATION FUNDING AGENCY,04/09/2012,Grants,Converter Academies,Ormesby School,Public Sector,"Grants paid to organisations including agencies, arms length bodies and educational establishments",PAYBACSAUTO 34543,"4,552"
Department for Education,EDUCATION FUNDING AGENCY,04/09/2012,Grants,Sponsored Academies,Orchard School Bristol,Public Sector,"Grants paid to organisations including agencies, arms length bodies and educational establishments",PAYBACSAUTO 34542,"4,507"
Department for Education,EDUCATION FUNDING AGENCY,04/09/2012,Grants,Sponsored Academies,The Robert Fitzroy Academy,Public Sector,"Grants paid to organisations including agencies, arms length bodies and educational establishments",PAYBACSAUTO 34585,"4,429"
Department for Education,EDUCATION FUNDING AGENCY,04/09/2012,Grants,Converter Academies,LYMM HIGH SCHOOL,Public Sector,"Grants paid to organisations including agencies, arms length bodies and educational establishments",PAYBACSAUTO 34517,"4,417"
Department for Education,EDUCATION FUNDING AGENCY,04/09/2012,Grants,Sponsored Academies,Greenwood Academies Trust,Public Sector,"Grants paid to organisations including agencies, arms length bodies and educational establishments",PAYBACSAUTO 34591,"3,876"
Department for Education,EDUCATION FUNDING AGENCY,04/09/2012,Grants,Converter Academies,Dixons Music Primary,Public Sector,"Grants paid to organisations including agencies, arms length bodies and educational establishments",PAYBACSAUTO 34470,"3,750"
Department for Education,EDUCATION FUNDING AGENCY,04/09/2012,Grants,Converter Academies,Offa's Mead Primary School,Public Sector,"Grants paid to organisations including agencies, arms length bodies and educational establishments",PAYBACSAUTO 34539,"3,606"
Department for Education,EDUCATION FUNDING AGENCY,04/09/2012,Grants,Sponsored Academies,Barton Hill Academy,Public Sector,"Grants paid to organisations including agencies, arms length bodies and educational establishments",PAYBACSAUTO 34434,"3,600"
Department for Education,EDUCATION FUNDING AGENCY,04/09/2012,Grants,Converter Academies,WAKEFIELD DIOCESAN ACADEMIES TRUST,Public Sector,"Grants paid to organisations including agencies, arms length bodies and educational establishments",PAYBACSAUTO 34456,"3,565"
Department for Education,EDUCATION FUNDING AGENCY,04/09/2012,Grants,Converter Academies,Childwall Sports and Science Academy,Public Sector,"Grants paid to organisations including agencies, arms length bodies and educational establishments",PAYBACSAUTO 34454,"3,353"
Department for Education,EDUCATION FUNDING AGENCY,04/09/2012,Grants,Converter Academies,The Stour Academy Trust:  Hersden Vi,Public Sector,"Grants paid to organisations including agencies, arms length bodies and educational establishments",PAYBACSAUTO 34501,"3,296"
Department for Education,EDUCATION FUNDING AGENCY,04/09/2012,Grants,Converter Academies,Harris Academy Greenwich,Public Sector,"Grants paid to organisations including agencies, arms length bodies and educational establishments",PAYBACSAUTO 34496,"3,192"
Department for Education,EDUCATION FUNDING AGENCY,04/09/2012,Grants,Converter Academies,Cleeve Park School,Public Sector,"Grants paid to organisations including agencies, arms length bodies and educational establishments",PAYBACSAUTO 34459,"3,160"
Department for Education,EDUCATION FUNDING AGENCY,04/09/2012,Grants,Converter Academies,Perry Beeches II - The Free School,Public Sector,"Grants paid to organisations including agencies, arms length bodies and educational establishments",PAYBACSAUTO 34546,"3,015"
Department for Education,EDUCATION FUNDING AGENCY,04/09/2012,Grants,Converter Academies,Avanti Schools Trust trading as Kris,Public Sector,"Grants paid to organisations including agencies, arms length bodies and educational establishments",PAYBACSAUTO 34513,"2,942"
Department for Education,EDUCATION FUNDING AGENCY,04/09/2012,Grants,Converter Academies,"Rawlett School, an AET Academy",Public Sector,"Grants paid to organisations including agencies, arms length bodies and educational establishments",PAYBACSAUTO 34550,"2,940"
Department for Education,EDUCATION FUNDING AGENCY,04/09/2012,Grants,Converter Academies,Latchmere School,Public Sector,"Grants paid to organisations including agencies, arms length bodies and educational establishments",PAYBACSAUTO 34514,"2,707"
Department for Education,EDUCATION FUNDING AGENCY,04/09/2012,Grants,Converter Academies,Castle Academy,Public Sector,"Grants paid to organisations including agencies, arms length bodies and educational establishments",PAYBACSAUTO 34461,"2,594"
Department for Education,EDUCATION FUNDING AGENCY,04/09/2012,Grants,Sponsored Academies,Harris Academy Greenwich,Public Sector,"Grants paid to organisations including agencies, arms length bodies and educational establishments",PAYBACSAUTO 34496,"2,570"
Department for Education,EDUCATION FUNDING AGENCY,04/09/2012,Grants,Sponsored Academies,Severn View Academy,Public Sector,"Grants paid to organisations including agencies, arms length bodies and educational establishments",PAYBACSAUTO 34553,"2,560"
Department for Education,EDUCATION FUNDING AGENCY,04/09/2012,Grants,Converter Academies,The Matthew Arnold School,Public Sector,"Grants paid to organisations including agencies, arms length bodies and educational establishments",PAYBACSAUTO 34519,"2,537"
Department for Education,EDUCATION FUNDING AGENCY,04/09/2012,Grants,Sponsored Academies,Peak Academy,Public Sector,"Grants paid to organisations including agencies, arms length bodies and educational establishments",PAYBACSAUTO 34545,"2,461"
Department for Education,EDUCATION FUNDING AGENCY,04/09/2012,Grants,Converter Academies,Hall Road Academy,Public Sector,"Grants paid to organisations including agencies, arms length bodies and educational establishments",PAYBACSAUTO 34494,"2,441"
Department for Education,EDUCATION FUNDING AGENCY,04/09/2012,Grants,Converter Academies,The Kemnal Academies Trust - Bridgem,Public Sector,"Grants paid to organisations including agencies, arms length bodies and educational establishments",PAYBACSAUTO 34444,"2,418"
Department for Education,EDUCATION FUNDING AGENCY,04/09/2012,Grants,Converter Academies,Southway Primary,Public Sector,"Grants paid to organisations including agencies, arms length bodies and educational establishments",PAYBACSAUTO 34560,"2,373"
Department for Education,EDUCATION FUNDING AGENCY,04/09/2012,Grants,Converter Academies,Christow Primary School Academy,Public Sector,"Grants paid to organisations including agencies, arms length bodies and educational establishments",PAYBACSAUTO 34455,"2,295"
Department for Education,EDUCATION FUNDING AGENCY,04/09/2012,Grants,Converter Academies,Finningley Church of England Primary,Public Sector,"Grants paid to organisations including agencies, arms length bodies and educational establishments",PAYBACSAUTO 34480,"2,278"
Department for Education,EDUCATION FUNDING AGENCY,04/09/2012,Grants,Sponsored Academies,Chaucer School,Public Sector,"Grants paid to organisations including agencies, arms length bodies and educational establishments",PAYBACSAUTO 34450,"2,275"
Department for Education,EDUCATION FUNDING AGENCY,04/09/2012,Grants,Converter Academies,CET Primary School Westminster,Public Sector,"Grants paid to organisations including agencies, arms length bodies and educational establishments",PAYBACSAUTO 34449,"2,251"
Department for Education,EDUCATION FUNDING AGENCY,04/09/2012,Grants,Sponsored Academies,Green Field Academy,Public Sector,"Grants paid to organisations including agencies, arms length bodies and educational establishments",PAYBACSAUTO 34493,"2,250"
Department for Education,EDUCATION FUNDING AGENCY,04/09/2012,Grants,Sponsored Academies,Green Field Academy,Public Sector,"Grants paid to organisations including agencies, arms length bodies and educational establishments",PAYBACSAUTO 34493,"2,238"
Department for Education,EDUCATION FUNDING AGENCY,04/09/2012,Grants,Converter Academies,Field Lane Primary School - Brighter,Public Sector,"Grants paid to organisations including agencies, arms length bodies and educational establishments",PAYBACSAUTO 34479,"2,232"
Department for Education,EDUCATION FUNDING AGENCY,04/09/2012,Grants,Sponsored Academies,Peak Academy,Public Sector,"Grants paid to organisations including agencies, arms length bodies and educational establishments",PAYBACSAUTO 34545,"2,194"
Department for Education,EDUCATION FUNDING AGENCY,04/09/2012,Grants,Converter Academies,George Dixon Academy,Public Sector,"Grants paid to organisations including agencies, arms length bodies and educational establishments",PAYBACSAUTO 34483,"2,145"
Department for Education,EDUCATION FUNDING AGENCY,04/09/2012,Grants,Converter Academies,The Faber Catholic Primary School,Public Sector,"Grants paid to organisations including agencies, arms length bodies and educational establishments",PAYBACSAUTO 34580,"2,139"
Department for Education,EDUCATION FUNDING AGENCY,04/09/2012,Grants,Converter Academies,Hogsthorpe Primary Academy,Public Sector,"Grants paid to organisations including agencies, arms length bodies and educational establishments",PAYBACSAUTO 34503,"2,133"
Department for Education,EDUCATION FUNDING AGENCY,04/09/2012,Grants,Sponsored Academies,The Ridge Academy,Public Sector,"Grants paid to organisations including agencies, arms length bodies and educational establishments",PAYBACSAUTO 34583,"2,131"
Department for Education,EDUCATION FUNDING AGENCY,04/09/2012,Grants,Converter Secondary Schools In-year openers,Eggar's School,Public Sector,"Grants paid to organisations including agencies, arms length bodies and educational establishments",PAYBACSAUTO 34472,"2,067"
Department for Education,EDUCATION FUNDING AGENCY,04/09/2012,Grants,Sponsored Academies,West Walsall E-ACT Academy,Public Sector,"Grants paid to organisations including agencies, arms length bodies and educational establishments",PAYBACSAUTO 34594,"2,060"
Department for Education,EDUCATION FUNDING AGENCY,04/09/2012,Grants,Sponsored Academies,The Purston E-ACT Academy,Public Sector,"Grants paid to organisations including agencies, arms length bodies and educational establishments",PAYBACSAUTO 34581,"2,012"
Department for Education,EDUCATION FUNDING AGENCY,04/09/2012,Grants,Sponsored Academies,The Ridge Academy,Public Sector,"Grants paid to organisations including agencies, arms length bodies and educational establishments",PAYBACSAUTO 34583,"1,969"
Department for Education,EDUCATION FUNDING AGENCY,04/09/2012,Grants,Converter Academies,The County High School Leftwich,Public Sector,"Grants paid to organisations including agencies, arms length bodies and educational establishments",PAYBACSAUTO 34576,"1,891"
Department for Education,EDUCATION FUNDING AGENCY,04/09/2012,Grants,Converter Academies,St Michael's Catholic Secondary Scho,Public Sector,"Grants paid to organisations including agencies, arms length bodies and educational establishments",PAYBACSAUTO 34567,"1,877"
Department for Education,EDUCATION FUNDING AGENCY,04/09/2012,Grants,Converter Academies,KING JAMES'S SCHOOL,Public Sector,"Grants paid to organisations including agencies, arms length bodies and educational establishments",PAYBACSAUTO 34511,"1,781"
Department for Education,EDUCATION FUNDING AGENCY,04/09/2012,Grants,Sponsored Academies,The Dolphin Academy,Public Sector,"Grants paid to organisations including agencies, arms length bodies and educational establishments",PAYBACSAUTO 34584,"1,708"
Department for Education,EDUCATION FUNDING AGENCY,04/09/2012,Grants,Converter Academies,Dixons Music Primary,Public Sector,"Grants paid to organisations including agencies, arms length bodies and educational establishments",PAYBACSAUTO 34470,"1,423"
Department for Education,EDUCATION FUNDING AGENCY,04/09/2012,Grants,Converter Academies,Ibstock Community College,Public Sector,"Grants paid to organisations including agencies, arms length bodies and educational establishments",PAYBACSAUTO 34506,"1,415"
Department for Education,EDUCATION FUNDING AGENCY,04/09/2012,Grants,Converter Academies,Copthall School,Public Sector,"Grants paid to organisations including agencies, arms length bodies and educational establishments",PAYBACSAUTO 34463,"1,365"
Department for Education,EDUCATION FUNDING AGENCY,04/09/2012,Grants,Converter Academies,Lion Academy Trust T/A Barclay Prima,Public Sector,"Grants paid to organisations including agencies, arms length bodies and educational establishments",PAYBACSAUTO 34433,"1,318"
Department for Education,EDUCATION FUNDING AGENCY,04/09/2012,Grants,Converter Academies,Newington Academy,Public Sector,"Grants paid to organisations including agencies, arms length bodies and educational establishments",PAYBACSAUTO 34531,"1,298"
Department for Education,EDUCATION FUNDING AGENCY,04/09/2012,Grants,Sponsored Academies,ARK Kings Academy,Public Sector,"Grants paid to organisations including agencies, arms length bodies and educational establishments",PAYBACSAUTO 34429,"1,249"
Department for Education,EDUCATION FUNDING AGENCY,04/09/2012,Grants,Sponsored Academies,Berrygrove Academy,Public Sector,"Grants paid to organisations including agencies, arms length bodies and educational establishments",PAYBACSAUTO 34439,"1,217"
Department for Education,EDUCATION FUNDING AGENCY,04/09/2012,Grants,Converter Academies,HORBURY ACADEMY,Public Sector,"Grants paid to organisations including agencies, arms length bodies and educational establishments",PAYBACSAUTO 34505,978
Department for Education,EDUCATION FUNDING AGENCY,04/09/2012,Grants,Converter Secondary Schools In-year openers,Barnfield Academy Trust,Public Sector,"Grants paid to organisations including agencies, arms length bodies and educational establishments",PAYBACSAUTO 34521,954
Department for Education,EDUCATION FUNDING AGENCY,04/09/2012,Grants,Converter Academies,Greenwood Academies Trust,Public Sector,"Grants paid to organisations including agencies, arms length bodies and educational establishments",PAYBACSAUTO 34510,949
Department for Education,EDUCATION FUNDING AGENCY,04/09/2012,Grants,Sponsored Academies,Oasis Academy Nunsthorpe,Public Sector,"Grants paid to organisations including agencies, arms length bodies and educational establishments",PAYBACSAUTO 34537,916
Department for Education,EDUCATION FUNDING AGENCY,04/09/2012,Grants,Converter Academies,The Painsley Catholic Academy,Public Sector,"Grants paid to organisations including agencies, arms length bodies and educational establishments",PAYBACSAUTO 34544,843
Department for Education,EDUCATION FUNDING AGENCY,04/09/2012,Grants,Converter Academies,The Green Way Academy,Public Sector,"Grants paid to organisations including agencies, arms length bodies and educational establishments",PAYBACSAUTO 34492,803
Department for Education,EDUCATION FUNDING AGENCY,04/09/2012,Grants,Converter Academies,Norbreck Primary Academy,Public Sector,"Grants paid to organisations including agencies, arms length bodies and educational establishments",PAYBACSAUTO 34535,769
Department for Education,EDUCATION FUNDING AGENCY,04/09/2012,Grants,Converter Academies,Shipston High School,Public Sector,"Grants paid to organisations including agencies, arms length bodies and educational establishments",PAYBACSAUTO 34555,758
Department for Education,EDUCATION FUNDING AGENCY,04/09/2012,Grants,Sponsored Academies,Oasis Academy Connaught,Public Sector,"Grants paid to organisations including agencies, arms length bodies and educational establishments",PAYBACSAUTO 34538,725
Department for Education,EDUCATION FUNDING AGENCY,04/09/2012,Grants,Sponsored Academies,"Noel Park Primary School, An AET Aca",Public Sector,"Grants paid to organisations including agencies, arms length bodies and educational establishments",PAYBACSAUTO 34533,717
Department for Education,EDUCATION FUNDING AGENCY,04/09/2012,Grants,Sponsored Academies,Barton Hill Academy,Public Sector,"Grants paid to organisations including agencies, arms length bodies and educational establishments",PAYBACSAUTO 34434,709
Department for Education,EDUCATION FUNDING AGENCY,04/09/2012,Grants,Converter Academies,The Stour Academy Trust:  Sturry CE,Public Sector,"Grants paid to organisations including agencies, arms length bodies and educational establishments",PAYBACSAUTO 34572,703
Department for Education,EDUCATION FUNDING AGENCY,04/09/2012,Grants,Converter Academies,GREENHOLM SCHOOL,Public Sector,"Grants paid to organisations including agencies, arms length bodies and educational establishments",PAYBACSAUTO 34490,687
Department for Education,EDUCATION FUNDING AGENCY,04/09/2012,Grants,Converter Academies,Millbank Academy,Public Sector,"Grants paid to organisations including agencies, arms length bodies and educational establishments",PAYBACSAUTO 34522,677
Department for Education,EDUCATION FUNDING AGENCY,04/09/2012,Grants,Sponsored Academies,Trinity Primary Academy,Public Sector,"Grants paid to organisations including agencies, arms length bodies and educational establishments",PAYBACSAUTO 34589,660
Department for Education,EDUCATION FUNDING AGENCY,04/09/2012,Grants,Converter Academies,THAMES VIEW INFANTS,Public Sector,"Grants paid to organisations including agencies, arms length bodies and educational establishments",PAYBACSAUTO 34573,649
Department for Education,EDUCATION FUNDING AGENCY,04/09/2012,Grants,Converter Academies,HERONS' MOOR ACADEMY TRUST,Public Sector,"Grants paid to organisations including agencies, arms length bodies and educational establishments",PAYBACSAUTO 34500,641
Department for Education,EDUCATION FUNDING AGENCY,04/09/2012,Grants,Converter Academies,Welbeck Academy,Public Sector,"Grants paid to organisations including agencies, arms length bodies and educational establishments",PAYBACSAUTO 34590,616
Department for Education,EDUCATION FUNDING AGENCY,04/09/2012,Grants,Sponsored Academies,Oasis Academy Connaught,Public Sector,"Grants paid to organisations including agencies, arms length bodies and educational establishments",PAYBACSAUTO 34538,600
Department for Education,EDUCATION FUNDING AGENCY,04/09/2012,Grants,Sponsored Academies,Portsmouth & Winchester Diocesan Aca,Public Sector,"Grants paid to organisations including agencies, arms length bodies and educational establishments",PAYBACSAUTO 34562,600
Department for Education,EDUCATION FUNDING AGENCY,04/09/2012,Grants,Sponsored Academies,Trinity Primary Academy,Public Sector,"Grants paid to organisations including agencies, arms length bodies and educational establishments",PAYBACSAUTO 34589,600
Department for Education,EDUCATION FUNDING AGENCY,04/09/2012,Grants,Sponsored Academies,Harris Primary Academy Coleraine Par,Public Sector,"Grants paid to organisations including agencies, arms length bodies and educational establishments",PAYBACSAUTO 34497,594
Department for Education,EDUCATION FUNDING AGENCY,04/09/2012,Grants,Converter Academies,Hook-with-Warsash Church Of England,Public Sector,"Grants paid to organisations including agencies, arms length bodies and educational establishments",PAYBACSAUTO 34504,583
Department for Education,EDUCATION FUNDING AGENCY,04/09/2012,Grants,Converter Academies,Old Basford School,Public Sector,"Grants paid to organisations including agencies, arms length bodies and educational establishments",PAYBACSAUTO 34540,574
Department for Education,EDUCATION FUNDING AGENCY,04/09/2012,Grants,Converter Academies,Danetree Junior School,Public Sector,"Grants paid to organisations including agencies, arms length bodies and educational establishments",PAYBACSAUTO 34465,572
Department for Education,EDUCATION FUNDING AGENCY,04/09/2012,Grants,Converter Academies,Long Field School,Public Sector,"Grants paid to organisations including agencies, arms length bodies and educational establishments",PAYBACSAUTO 34516,566
Department for Education,EDUCATION FUNDING AGENCY,04/09/2012,Grants,Converter Academies,The Manor C of E School,Public Sector,"Grants paid to organisations including agencies, arms length bodies and educational establishments",PAYBACSAUTO 34578,566
Department for Education,EDUCATION FUNDING AGENCY,04/09/2012,Grants,Converter Academies,The Milford Academy,Public Sector,"Grants paid to organisations including agencies, arms length bodies and educational establishments",PAYBACSAUTO 34523,524
Department for Education,EDUCATION FUNDING AGENCY,04/09/2012,Grants,Converter Academies,Flegg High School,Public Sector,"Grants paid to organisations including agencies, arms length bodies and educational establishments",PAYBACSAUTO 34481,506
Department for Education,EDUCATION FUNDING AGENCY,04/09/2012,Grants,Converter Academies,School Partnership Trust Academies -,VCS,Grants to third sector organisations / not for profit organisations,PAYBACSAUTO 34464,489
Department for Education,EDUCATION FUNDING AGENCY,04/09/2012,Programme Costs,Converter Academies,Armthorpe Shaw Wood Academy Ltd,Commercial,Funding to external organisations to deliver policies (excluding consultancy),PAYBACSAUTO 34554,482
Department for Education,EDUCATION FUNDING AGENCY,04/09/2012,Grants,Sponsored Academies,Sir Herbert Leon Academy,Public Sector,"Grants paid to organisations including agencies, arms length bodies and educational establishments",PAYBACSAUTO 34556,481
Department for Education,EDUCATION FUNDING AGENCY,04/09/2012,Grants,Converter Academies,Lee Chapel Academy Trust t/a G,Public Sector,"Grants paid to organisations including agencies, arms length bodies and educational establishments",PAYBACSAUTO 34488,475
Department for Education,EDUCATION FUNDING AGENCY,04/09/2012,Grants,Converter Secondary Schools In-year openers,Beis Yaakov Jewish High School Acade,Public Sector,"Grants paid to organisations including agencies, arms length bodies and educational establishments",PAYBACSAUTO 34436,468
Department for Education,EDUCATION FUNDING AGENCY,04/09/2012,Grants,Converter Academies,OASIS ACADEMY BYRON,Public Sector,"Grants paid to organisations including agencies, arms length bodies and educational establishments",PAYBACSAUTO 34448,466
Department for Education,EDUCATION FUNDING AGENCY,04/09/2012,Grants,Converter Academies,New Forest Academy,Public Sector,"Grants paid to organisations including agencies, arms length bodies and educational establishments",PAYBACSAUTO 34530,460
Department for Education,EDUCATION FUNDING AGENCY,04/09/2012,Grants,Converter Academies,Reedswood E-ACT Primary School,Public Sector,"Grants paid to organisations including agencies, arms length bodies and educational establishments",PAYBACSAUTO 34438,440
Department for Education,EDUCATION FUNDING AGENCY,04/09/2012,Grants,Converter Academies,Newent Community School and Sixth Fo,Public Sector,"Grants paid to organisations including agencies, arms length bodies and educational establishments",PAYBACSAUTO 34529,436
Department for Education,EDUCATION FUNDING AGENCY,04/09/2012,Grants,Converter Academies,Epworth Primary Academy,Public Sector,"Grants paid to organisations including agencies, arms length bodies and educational establishments",PAYBACSAUTO 34476,436
Department for Education,EDUCATION FUNDING AGENCY,04/09/2012,Grants,Converter Academies,Colston's Primary School,Public Sector,"Grants paid to organisations including agencies, arms length bodies and educational establishments",PAYBACSAUTO 34460,429
Department for Education,EDUCATION FUNDING AGENCY,04/09/2012,Grants,Converter Academies,Byrchall High School,Public Sector,"Grants paid to organisations including agencies, arms length bodies and educational establishments",PAYBACSAUTO 34579,399
Department for Education,EDUCATION FUNDING AGENCY,04/09/2012,Grants,Converter Academies,Field Lane Primary School - Brighter,Public Sector,"Grants paid to organisations including agencies, arms length bodies and educational establishments",PAYBACSAUTO 34479,398
Department for Education,EDUCATION FUNDING AGENCY,04/09/2012,Grants,Converter Academies,Percy Shurmer Academy,Public Sector,"Grants paid to organisations including agencies, arms length bodies and educational establishments",PAYBACSAUTO 34547,397
Department for Education,EDUCATION FUNDING AGENCY,04/09/2012,Grants,Sponsored Academies,CfBT Schools Trust trading as Meadow,Public Sector,"Grants paid to organisations including agencies, arms length bodies and educational establishments",PAYBACSAUTO 34520,396
Department for Education,EDUCATION FUNDING AGENCY,04/09/2012,Grants,Converter Academies,ARK Tindal Primary Academy,Public Sector,"Grants paid to organisations including agencies, arms length bodies and educational establishments",PAYBACSAUTO 34586,382
Department for Education,EDUCATION FUNDING AGENCY,04/09/2012,Grants,Converter Academies,Stoneleigh Primary School,Public Sector,"Grants paid to organisations including agencies, arms length bodies and educational establishments",PAYBACSAUTO 34570,382
Department for Education,EDUCATION FUNDING AGENCY,04/09/2012,Grants,Converter Secondary Schools In-year openers,Newport Free Grammar School,Public Sector,"Grants paid to organisations including agencies, arms length bodies and educational establishments",PAYBACSAUTO 34526,380
Department for Education,EDUCATION FUNDING AGENCY,04/09/2012,Grants,Converter Academies,Avanti Schools Trust trading as Kris,Public Sector,"Grants paid to organisations including agencies, arms length bodies and educational establishments",PAYBACSAUTO 34513,378
Department for Education,EDUCATION FUNDING AGENCY,04/09/2012,Grants,Converter Academies,Greenfield E-ACT Primary Academy,Public Sector,"Grants paid to organisations including agencies, arms length bodies and educational establishments",PAYBACSAUTO 34487,371
Department for Education,EDUCATION FUNDING AGENCY,04/09/2012,Grants,Converter Academies,Equitas Academy Trust,VCS,Grants to third sector organisations / not for profit organisations,PAYBACSAUTO 34453,364
Department for Education,EDUCATION FUNDING AGENCY,04/09/2012,Grants,Converter Academies,Godolphin Infant School,Public Sector,"Grants paid to organisations including agencies, arms length bodies and educational establishments",PAYBACSAUTO 34486,364
Department for Education,EDUCATION FUNDING AGENCY,04/09/2012,Grants,Sponsored Academies,Severn View Academy,Public Sector,"Grants paid to organisations including agencies, arms length bodies and educational establishments",PAYBACSAUTO 34553,361
Department for Education,EDUCATION FUNDING AGENCY,04/09/2012,Grants,Converter Academies,The Stour Academy Trust:  Hersden Vi,Public Sector,"Grants paid to organisations including agencies, arms length bodies and educational establishments",PAYBACSAUTO 34501,355
Department for Education,EDUCATION FUNDING AGENCY,04/09/2012,Grants,Converter Academies,Great Barr Primary School,Public Sector,"Grants paid to organisations including agencies, arms length bodies and educational establishments",PAYBACSAUTO 34489,350
Department for Education,EDUCATION FUNDING AGENCY,04/09/2012,Grants,Sponsored Academies,Blue Coat CofE Academy Walsall,Public Sector,"Grants paid to organisations including agencies, arms length bodies and educational establishments",PAYBACSAUTO 34440,350
Department for Education,EDUCATION FUNDING AGENCY,04/09/2012,Grants,Converter Academies,Windsor Academy Trust t/a Goldsmith,Public Sector,"Grants paid to organisations including agencies, arms length bodies and educational establishments",PAYBACSAUTO 34495,349
Department for Education,EDUCATION FUNDING AGENCY,04/09/2012,Grants,Converter Academies,School Partnership Trust Academies -,VCS,Grants to third sector organisations / not for profit organisations,PAYBACSAUTO 34477,340
Department for Education,EDUCATION FUNDING AGENCY,04/09/2012,Grants,Converter Academies,Oasis Academy New Oak,Public Sector,"Grants paid to organisations including agencies, arms length bodies and educational establishments",PAYBACSAUTO 34528,335
Department for Education,EDUCATION FUNDING AGENCY,04/09/2012,Grants,Converter Academies,Frome Vale Academy,Public Sector,"Grants paid to organisations including agencies, arms length bodies and educational establishments",PAYBACSAUTO 34541,330
Department for Education,EDUCATION FUNDING AGENCY,04/09/2012,Grants,Sponsored Academies,CfBT Schools Trust T/A Queensbury Ac,Public Sector,"Grants paid to organisations including agencies, arms length bodies and educational establishments",PAYBACSAUTO 34548,325
Department for Education,EDUCATION FUNDING AGENCY,04/09/2012,Grants,Sponsored Academies,Charles Warren Academy,Public Sector,"Grants paid to organisations including agencies, arms length bodies and educational establishments",PAYBACSAUTO 34451,322
Department for Education,EDUCATION FUNDING AGENCY,04/09/2012,Grants,Converter Academies,Axbridge C of E First School Academy,Public Sector,"Grants paid to organisations including agencies, arms length bodies and educational establishments",PAYBACSAUTO 34431,313
Department for Education,EDUCATION FUNDING AGENCY,04/09/2012,Grants,Sponsored Academies,Portsmouth & Winchester Diocesan Aca,Public Sector,"Grants paid to organisations including agencies, arms length bodies and educational establishments",PAYBACSAUTO 34562,311
Department for Education,EDUCATION FUNDING AGENCY,04/09/2012,Grants,Converter Academies,Westwoodside C.E. School,Public Sector,"Grants paid to organisations including agencies, arms length bodies and educational establishments",PAYBACSAUTO 34593,309
Department for Education,EDUCATION FUNDING AGENCY,04/09/2012,Grants,Converter Academies,Moorhead Primary School,Public Sector,"Grants paid to organisations including agencies, arms length bodies and educational establishments",PAYBACSAUTO 34524,294
Department for Education,EDUCATION FUNDING AGENCY,04/09/2012,Grants,Converter Academies,ARK Bentworth Primary Academy,Public Sector,"Grants paid to organisations including agencies, arms length bodies and educational establishments",PAYBACSAUTO 34437,294
Department for Education,EDUCATION FUNDING AGENCY,04/09/2012,Grants,Converter Academies,THE DEAN TRUST - FOREST  GATE ACADEM,Public Sector,"Grants paid to organisations including agencies, arms length bodies and educational establishments",PAYBACSAUTO 34482,278
Department for Education,EDUCATION FUNDING AGENCY,04/09/2012,Grants,Converter Academies,Elmridge Primary School,Public Sector,"Grants paid to organisations including agencies, arms length bodies and educational establishments",PAYBACSAUTO 34475,275
Department for Education,EDUCATION FUNDING AGENCY,04/09/2012,Grants,Converter Academies,MINERVA PRIMARY ACADEMY,Public Sector,"Grants paid to organisations including agencies, arms length bodies and educational establishments",PAYBACSAUTO 34502,275
Department for Education,EDUCATION FUNDING AGENCY,04/09/2012,Grants,Converter Academies,Brockworth Primary Academy,Public Sector,"Grants paid to organisations including agencies, arms length bodies and educational establishments",PAYBACSAUTO 34446,268
Department for Education,EDUCATION FUNDING AGENCY,04/09/2012,Grants,Sponsored Academies,Radburn Primary School,Public Sector,"Grants paid to organisations including agencies, arms length bodies and educational establishments",PAYBACSAUTO 34549,266
Department for Education,EDUCATION FUNDING AGENCY,04/09/2012,Grants,Sponsored Academies,ARK Rose Primary Academy,Public Sector,"Grants paid to organisations including agencies, arms length bodies and educational establishments",PAYBACSAUTO 34430,265
Department for Education,EDUCATION FUNDING AGENCY,04/09/2012,Programme Costs,Converter Academies,The Hill,Commercial,Funding to external organisations to deliver policies (excluding consultancy),PAYBACSAUTO 34577,262
Department for Education,EDUCATION FUNDING AGENCY,04/09/2012,Grants,Converter Academies,ACLE ACADEMY,Public Sector,"Grants paid to organisations including agencies, arms length bodies and educational establishments",PAYBACSAUTO 34428,261
Department for Education,EDUCATION FUNDING AGENCY,04/09/2012,Grants,Converter Academies,Highgate Academy,Public Sector,"Grants paid to organisations including agencies, arms length bodies and educational establishments",PAYBACSAUTO 34467,261
Department for Education,EDUCATION FUNDING AGENCY,04/09/2012,Grants,Converter Academies,OASIS ACADEMY BANK LEAZE,Public Sector,"Grants paid to organisations including agencies, arms length bodies and educational establishments",PAYBACSAUTO 34432,261
Department for Education,EDUCATION FUNDING AGENCY,04/09/2012,Grants,Converter Academies,Woodham Academy,Public Sector,"Grants paid to organisations including agencies, arms length bodies and educational establishments",PAYBACSAUTO 34597,257
Department for Education,EDUCATION FUNDING AGENCY,04/09/2012,Grants,Converter Academies,Kelsall Primary School,Public Sector,"Grants paid to organisations including agencies, arms length bodies and educational establishments",PAYBACSAUTO 34508,250
Department for Education,EDUCATION FUNDING AGENCY,04/09/2012,Grants,Converter Academies,Northern Education Trust - Ryecroft,Public Sector,"Grants paid to organisations including agencies, arms length bodies and educational establishments",PAYBACSAUTO 34552,234
Department for Education,EDUCATION FUNDING AGENCY,04/09/2012,Grants,Converter Academies,ARK Putney Academy,Public Sector,"Grants paid to organisations including agencies, arms length bodies and educational establishments",PAYBACSAUTO 34473,233
Department for Education,EDUCATION FUNDING AGENCY,04/09/2012,Grants,Converter Academies,Castle Academy,Public Sector,"Grants paid to organisations including agencies, arms length bodies and educational establishments",PAYBACSAUTO 34461,201
Department for Education,EDUCATION FUNDING AGENCY,04/09/2012,Grants,Converter Academies,St John's C of E Academy Coleford,Public Sector,"Grants paid to organisations including agencies, arms length bodies and educational establishments",PAYBACSAUTO 34566,193
Department for Education,EDUCATION FUNDING AGENCY,04/09/2012,Grants,Converter Academies,Offa's Mead Primary School,Public Sector,"Grants paid to organisations including agencies, arms length bodies and educational establishments",PAYBACSAUTO 34539,192
Department for Education,EDUCATION FUNDING AGENCY,04/09/2012,Grants,Converter Academies,Southfields Academy,Public Sector,"Grants paid to organisations including agencies, arms length bodies and educational establishments",PAYBACSAUTO 34559,187
Department for Education,EDUCATION FUNDING AGENCY,04/09/2012,Grants,Converter Academies,Hall Road Academy,Public Sector,"Grants paid to organisations including agencies, arms length bodies and educational establishments",PAYBACSAUTO 34494,180
Department for Education,EDUCATION FUNDING AGENCY,04/09/2012,Grants,Converter Academies,Boughton Primary School Trust,Public Sector,"Grants paid to organisations including agencies, arms length bodies and educational establishments",PAYBACSAUTO 34443,176
Department for Education,EDUCATION FUNDING AGENCY,04/09/2012,Grants,Converter Academies,West Malling Church of England Acade,Public Sector,"Grants paid to organisations including agencies, arms length bodies and educational establishments",PAYBACSAUTO 34592,162
Department for Education,EDUCATION FUNDING AGENCY,04/09/2012,Grants,Converter Academies,Nechells E-ACT Primary Academy,Public Sector,"Grants paid to organisations including agencies, arms length bodies and educational establishments",PAYBACSAUTO 34525,160
Department for Education,EDUCATION FUNDING AGENCY,04/09/2012,Grants,Converter Academies,Newington Academy,Public Sector,"Grants paid to organisations including agencies, arms length bodies and educational establishments",PAYBACSAUTO 34531,151
Department for Education,EDUCATION FUNDING AGENCY,04/09/2012,Grants,Converter Academies,Christow Primary School Academy,Public Sector,"Grants paid to organisations including agencies, arms length bodies and educational establishments",PAYBACSAUTO 34455,149
Department for Education,EDUCATION FUNDING AGENCY,04/09/2012,Grants,Converter Academies,Carrfield Academy,Public Sector,"Grants paid to organisations including agencies, arms length bodies and educational establishments",PAYBACSAUTO 34466,126
Department for Education,EDUCATION FUNDING AGENCY,04/09/2012,Grants,Converter Academies,Kenningtons Primary Academy,Public Sector,"Grants paid to organisations including agencies, arms length bodies and educational establishments",PAYBACSAUTO 34509,90
Department for Education,EDUCATION FUNDING AGENCY,04/09/2012,Grants,Converter Academies,Gretton Primary,Public Sector,"Grants paid to organisations including agencies, arms length bodies and educational establishments",PAYBACSAUTO 34491,88
Department for Education,EDUCATION FUNDING AGENCY,04/09/2012,Grants,Converter Academies,St Thomas' Catholic Primary School,Public Sector,"Grants paid to organisations including agencies, arms length bodies and educational establishments",PAYBACSAUTO 34571,79
Department for Education,EDUCATION FUNDING AGENCY,04/09/2012,Grants,Converter Academies,St Mary's Catholic Primary School,Public Sector,"Grants paid to organisations including agencies, arms length bodies and educational establishments",PAYBACSAUTO 34568,76
Department for Education,EDUCATION FUNDING AGENCY,04/09/2012,Grants,Converter Academies,Finningley Church of England Primary,Public Sector,"Grants paid to organisations including agencies, arms length bodies and educational establishments",PAYBACSAUTO 34480,66
Department for Education,EDUCATION FUNDING AGENCY,04/09/2012,Grants,Converter Academies,WAKEFIELD DIOCESAN ACADEMIES TRUST,Public Sector,"Grants paid to organisations including agencies, arms length bodies and educational establishments",PAYBACSAUTO 34456,53
Department for Education,EDUCATION FUNDING AGENCY,04/09/2012,Grants,Converter Academies,St Joseph's Catholic Primary School,Public Sector,"Grants paid to organisations including agencies, arms length bodies and educational establishments",PAYBACSAUTO 34565,52
Department for Education,EDUCATION FUNDING AGENCY,04/09/2012,Grants,Converter Academies,St Giles Catholic Primary School,Public Sector,"Grants paid to organisations including agencies, arms length bodies and educational establishments",PAYBACSAUTO 34564,42
Department for Education,EDUCATION FUNDING AGENCY,04/09/2012,Grants,Converter Academies,St Filumena's Catholic Primary Schoo,Public Sector,"Grants paid to organisations including agencies, arms length bodies and educational establishments",PAYBACSAUTO 34563,31
Department for Education,EDUCATION FUNDING AGENCY,04/09/2012,Grants,Converter Academies,The Faber Catholic Primary School,Public Sector,"Grants paid to organisations including agencies, arms length bodies and educational establishments",PAYBACSAUTO 34580,14
Department for Education,EDUCATION FUNDING AGENCY,04/09/2012,Grants,Converter Academies,Perry Beeches II - The Free School,Public Sector,"Grants paid to organisations including agencies, arms length bodies and educational establishments",PAYBACSAUTO 34546,"-12,960"
Department for Education,TEACHING AGENCY,05/09/2012,Grants,Funding Allocation and Performance Division,UNIVERSITY OF CUMBRIA,Public Sector,Grants to third sector organisations / not for profit organisations,4000094391,"1,121,364"
Department for Education,TEACHING AGENCY,05/09/2012,Grants,Funding Allocation and Performance Division,EDGE HILL UNIVERSITY,Public Sector,Grants to third sector organisations / not for profit organisations,4000094270,"938,440"
Department for Education,TEACHING AGENCY,05/09/2012,Grants,Quality and Priorities Division,CANTERBURY CHRIST CHURCH UNIVERSITY,Public Sector,Grants to third sector organisations / not for profit organisations,4000094248,"887,250"
Department for Education,TEACHING AGENCY,05/09/2012,Grants,Funding Allocation and Performance Division,MANCHESTER METROPOLITAN UNIVERSITY,Public Sector,Grants to third sector organisations / not for profit organisations,4000094313,"703,116"
Department for Education,TEACHING AGENCY,05/09/2012,Grants,Funding Allocation and Performance Division,UNIVERSITY OF BRIGHTON,Public Sector,Grants to third sector organisations / not for profit organisations,4000094386,"678,366"
Department for Education,TEACHING AGENCY,05/09/2012,Grants,Funding Allocation and Performance Division,UNIVERSITY OF ROEHAMPTON,Public Sector,Grants to third sector organisations / not for profit organisations,4000094409,"522,784"
Department for Education,TEACHING AGENCY,05/09/2012,Grants,Funding Allocation and Performance Division,UNIVERSITY OF WINCHESTER,Public Sector,Grants to third sector organisations / not for profit organisations,4000094417,"508,572"
Department for Education,TEACHING AGENCY,05/09/2012,Grants,Funding Allocation and Performance Division,BRADFORD COLLEGE,Public Sector,Grants to third sector organisations / not for profit organisations,4000094243,"492,834"
Department for Education,TEACHING AGENCY,05/09/2012,Grants,Funding Allocation and Performance Division,LIVERPOOL HOPE UNIVERSITY,Public Sector,Grants to third sector organisations / not for profit organisations,4000094302,"473,688"
Department for Education,TEACHING AGENCY,05/09/2012,Grants,Funding Allocation and Performance Division,SHEFFIELD HALLAM UNIVERSITY,Public Sector,Grants to third sector organisations / not for profit organisations,4000094348,"469,910"
Department for Education,TEACHING AGENCY,05/09/2012,Grants,Funding Allocation and Performance Division,UNIVERSITY OF BEDFORDSHIRE,Public Sector,Grants to third sector organisations / not for profit organisations,4000094384,"447,624"
Department for Education,TEACHING AGENCY,05/09/2012,Grants,Funding Allocation and Performance Division,LEEDS METROPOLITAN UNIVERSITY,Public Sector,Grants to third sector organisations / not for profit organisations,4000094299,"434,070"
Department for Education,TEACHING AGENCY,05/09/2012,Grants,Funding Allocation and Performance Division,CANTERBURY CHRIST CHURCH UNIVERSITY,Public Sector,Grants to third sector organisations / not for profit organisations,4000094248,"429,066"
Department for Education,TEACHING AGENCY,05/09/2012,Grants,Funding Allocation and Performance Division,UNIVERSITY OF PLYMOUTH,Public Sector,Grants to third sector organisations / not for profit organisations,4000094407,"400,248"
Department for Education,TEACHING AGENCY,05/09/2012,Grants,Funding Allocation and Performance Division,UNIVERSITY OF SUNDERLAND,Public Sector,Grants to third sector organisations / not for profit organisations,4000094413,"378,710"
Department for Education,TEACHING AGENCY,05/09/2012,Grants,Funding Allocation and Performance Division,UNIVERSITY OF CHICHESTER,Public Sector,Grants to third sector organisations / not for profit organisations,4000094390,"368,874"
Department for Education,TEACHING AGENCY,05/09/2012,Grants,Funding Allocation and Performance Division,ST MARYS UNIVERSITY COLLEGE,Public Sector,Grants to third sector organisations / not for profit organisations,4000094355,"367,744"
Department for Education,TEACHING AGENCY,05/09/2012,Grants,Funding Allocation and Performance Division,LEEDS TRINITY UNIVERSITY COLLEGE,Public Sector,Grants to third sector organisations / not for profit organisations,4000094300,"354,348"
Department for Education,TEACHING AGENCY,05/09/2012,Grants,Funding Allocation and Performance Division,LIVERPOOL JOHN MOORES UNIVERSITY,Public Sector,Grants to third sector organisations / not for profit organisations,4000094303,"318,146"
Department for Education,TEACHING AGENCY,05/09/2012,Grants,Funding Allocation and Performance Division,BIRMINGHAM CITY UNIVERSITY,Public Sector,Grants to third sector organisations / not for profit organisations,4000094238,"317,628"
Department for Education,TEACHING AGENCY,05/09/2012,Grants,Funding Allocation and Performance Division,NOTTINGHAM TRENT UNIVERSITY,Public Sector,Grants to third sector organisations / not for profit organisations,4000094334,"293,708"
Department for Education,TEACHING AGENCY,05/09/2012,Grants,Funding Allocation and Performance Division,NEWMAN COLLEGE,Public Sector,Grants to third sector organisations / not for profit organisations,4000094323,"279,712"
Department for Education,TEACHING AGENCY,05/09/2012,Grants,Quality and Priorities Division,UNIVERSITY OF WARWICK,Public Sector,Grants to third sector organisations / not for profit organisations,4000094416,"276,500"
Department for Education,TEACHERS PENSION SCHEME,05/09/2012,Funding to Pay Teachers' Pensions,Workforce Group,CAPITA TP NATWEST,Commercial,Funding to pay Teachers' Pensions,1001229,"19,855,179"
Department for Education,TEACHING AGENCY,05/09/2012,Grants,Funding Allocation and Performance Division,THE COLLEGE OF ST MARK & ST JOHN,Public Sector,Grants to third sector organisations / not for profit organisations,4000094367,"256,158"
Department for Education,TEACHING AGENCY,05/09/2012,Grants,Funding Allocation and Performance Division,UNIVERSITY OF THE WEST OF ENGLAND,Public Sector,Grants to third sector organisations / not for profit organisations,4000094415,"252,450"
Department for Education,TEACHING AGENCY,05/09/2012,Grants,Funding Allocation and Performance Division,DERBYSHIRE COUNTY COUNCIL,Public Sector,Grants to third sector organisations / not for profit organisations,4000094459,"250,356"
Department for Education,TEACHING AGENCY,05/09/2012,Grants,Funding Allocation and Performance Division,UNIVERSITY OF WORCESTER,Public Sector,Grants to third sector organisations / not for profit organisations,4000094419,"233,172"
Department for Education,TEACHING AGENCY,05/09/2012,Grants,Funding Allocation and Performance Division,UNIVERSITY OF DERBY,Public Sector,Grants to third sector organisations / not for profit organisations,4000094392,"229,500"
Department for Education,TEACHING AGENCY,05/09/2012,Grants,Funding Allocation and Performance Division,UNIVERSITY OF HERTFORDSHIRE,Public Sector,Grants to third sector organisations / not for profit organisations,4000094399,"229,500"
Department for Education,TEACHING AGENCY,05/09/2012,Grants,Quality and Priorities Division,YORKSHIRE & DERBYSHIRE TRAIN,VCS,Grants to third sector organisations / not for profit organisations,4000094425,"222,250"
Department for Education,TEACHING AGENCY,05/09/2012,Grants,Funding Allocation and Performance Division,OXFORD BROOKES UNIVERSITY,Public Sector,Grants to third sector organisations / not for profit organisations,4000094337,"222,156"
Department for Education,TEACHING AGENCY,05/09/2012,Grants,Funding Allocation and Performance Division,UNIVERSITY OF NORTHUMBRIA,Public Sector,Grants to third sector organisations / not for profit organisations,4000094405,"212,058"
Department for Education,TEACHING AGENCY,05/09/2012,Grants,Funding Allocation and Performance Division,UNIVERSITY OF NORTHAMPTON,Public Sector,Grants to third sector organisations / not for profit organisations,4000094404,"211,140"
Department for Education,TEACHING AGENCY,05/09/2012,Grants,Funding Allocation and Performance Division,HIBERNIA COLLEGE UK,Public Sector,Grants to third sector organisations / not for profit organisations,4000094284,"206,437"
Department for Education,TEACHING AGENCY,05/09/2012,Grants,Funding Allocation and Performance Division,UNIVERSITY OF CHESTER,Public Sector,Grants to third sector organisations / not for profit organisations,4000094389,"203,796"
Department for Education,TEACHERS PENSION SCHEME,05/09/2012,Funding to Pay Teachers' Pensions,Workforce Group,CAPITA TP HSBC,Commercial,Funding to pay Teachers' Pensions,1001228,"206,777"
Department for Education,TEACHING AGENCY,05/09/2012,Grants,Funding Allocation and Performance Division,UNIVERSITY OF GLOUCESTERSHIRE,Public Sector,Grants to third sector organisations / not for profit organisations,4000094397,"203,796"
Department for Education,TEACHING AGENCY,05/09/2012,Grants,Funding Allocation and Performance Division,UNIVERSITY OF HULL,Public Sector,Grants to third sector organisations / not for profit organisations,4000094401,"193,698"
Department for Education,TEACHING AGENCY,05/09/2012,Grants,Funding Allocation and Performance Division,WEST MIDLANDS CONSORTIUM,VCS,Grants to third sector organisations / not for profit organisations,4000094423,"193,302"
Department for Education,TEACHING AGENCY,05/09/2012,Grants,Funding Allocation and Performance Division,EDGE HILL UNIVERSITY,Public Sector,Grants to third sector organisations / not for profit organisations,4000094270,"191,393"
Department for Education,TEACHING AGENCY,05/09/2012,Grants,Funding Allocation and Performance Division,CHILTERN TRAINING GROUP,Public Sector,Grants to third sector organisations / not for profit organisations,4000094250,"182,186"
Department for Education,TEACHING AGENCY,05/09/2012,Grants,Quality and Priorities Division,THE UNIVERSITY OF MANCHESTER,Public Sector,Grants to third sector organisations / not for profit organisations,4000094376,"175,000"
Department for Education,TEACHING AGENCY,05/09/2012,Grants,Funding Allocation and Performance Division,UNIVERSITY OF GREENWICH,Public Sector,Grants to third sector organisations / not for profit organisations,4000094398,"172,630"
Department for Education,TEACHING AGENCY,05/09/2012,Grants,Funding Allocation and Performance Division,KINGSTON UNIVERSITY,Public Sector,Grants to third sector organisations / not for profit organisations,4000094294,"167,736"
Department for Education,TEACHING AGENCY,05/09/2012,Grants,Funding Allocation and Performance Division,UNIVERSITY OF DURHAM,Public Sector,Grants to third sector organisations / not for profit organisations,4000094393,"167,076"
Department for Education,TEACHING AGENCY,05/09/2012,Grants,Funding Allocation and Performance Division,ANGLIA RUSKIN UNIVERSITY,Public Sector,Grants to third sector organisations / not for profit organisations,4000094233,"160,650"
Department for Education,TEACHING AGENCY,05/09/2012,Grants,Funding Allocation and Performance Division,BISHOP GROSSETESTE COLLEGE,Public Sector,Grants to third sector organisations / not for profit organisations,4000094240,"159,732"
Department for Education,TEACHING AGENCY,05/09/2012,Grants,Funding Allocation and Performance Division,CORNWALL SCITT,VCS,Grants to third sector organisations / not for profit organisations,4000094256,"157,726"
Department for Education,TEACHING AGENCY,05/09/2012,Grants,Funding Allocation and Performance Division,KENT & MEDWAY TRAINING,VCS,Grants to third sector organisations / not for profit organisations,4000094290,"155,334"
Department for Education,TEACHING AGENCY,05/09/2012,Grants,Funding Allocation and Performance Division,OUTSTANDING SCHOOLS SCITT,Public Sector,Grants to third sector organisations / not for profit organisations,4000094336,"154,213"
Department for Education,TEACHING AGENCY,05/09/2012,Grants,Funding Allocation and Performance Division,UNIVERSITY OF WOLVERHAMPTON,Public Sector,Grants to third sector organisations / not for profit organisations,4000094418,"151,470"
Department for Education,TEACHING AGENCY,05/09/2012,Grants,Funding Allocation and Performance Division,BRADFORD COLLEGE,Public Sector,Grants to third sector organisations / not for profit organisations,4000094243,"148,716"
Department for Education,TEACHING AGENCY,05/09/2012,Grants,Funding Allocation and Performance Division,DEVON COUNTY COUNCIL,Public Sector,Grants to third sector organisations / not for profit organisations,4000094259,"137,809"
Department for Education,TEACHING AGENCY,05/09/2012,Grants,Funding Allocation and Performance Division,THE UNIVERSITY OF READING,Public Sector,Grants to third sector organisations / not for profit organisations,4000094378,"137,700"
Department for Education,TEACHING AGENCY,05/09/2012,Grants,Funding Allocation and Performance Division,MIDDLESEX UNIVERSITY,Public Sector,Grants to third sector organisations / not for profit organisations,4000094320,"136,888"
Department for Education,TEACHING AGENCY,05/09/2012,Grants,Funding Allocation and Performance Division,SWINDON SCITT,Public Sector,Grants to third sector organisations / not for profit organisations,4000094361,"133,921"
Department for Education,TEACHING AGENCY,05/09/2012,Grants,Funding Allocation and Performance Division,SUFFOLK COUNTY COUNCIL,Public Sector,Grants to third sector organisations / not for profit organisations,4000094359,"133,359"
Department for Education,TEACHING AGENCY,05/09/2012,Grants,Funding Allocation and Performance Division,GLOUCESTERSHIRE ITE PARTNERSHIP,Public Sector,Grants to third sector organisations / not for profit organisations,4000094280,"131,710"
Department for Education,TEACHING AGENCY,05/09/2012,Grants,Funding Allocation and Performance Division,DURHAM COUNTY COUNCIL,Public Sector,Grants to third sector organisations / not for profit organisations,4000094263,"130,322"
Department for Education,TEACHING AGENCY,05/09/2012,Grants,Funding Allocation and Performance Division,CANTERBURY CHRIST CHURCH UNIVERSITY,Public Sector,Grants to third sector organisations / not for profit organisations,4000094248,"124,737"
Department for Education,TEACHING AGENCY,05/09/2012,Grants,Funding Allocation and Performance Division,THE MARCHES CONSORTIUM,VCS,Grants to third sector organisations / not for profit organisations,4000094369,"119,442"
Department for Education,TEACHING AGENCY,05/09/2012,Grants,Funding Allocation and Performance Division,EDGE HILL UNIVERSITY,Public Sector,Grants to third sector organisations / not for profit organisations,4000094270,"112,789"
Department for Education,TEACHING AGENCY,05/09/2012,Grants,Funding Allocation and Performance Division,LIVERPOOL JOHN MOORES UNIVERSITY,Public Sector,Grants to third sector organisations / not for profit organisations,4000094303,"111,782"
Department for Education,TEACHING AGENCY,05/09/2012,Grants,Funding Allocation and Performance Division,GRAND UNION TRAINING PARTNERSHIP,Public Sector,Grants to third sector organisations / not for profit organisations,4000094282,"106,609"
Department for Education,TEACHING AGENCY,05/09/2012,Grants,Quality and Priorities Division,THE UNIVERSITY OF NOTTINGHAM PARTNERSHIP,Public Sector,Grants to third sector organisations / not for profit organisations,4000094377,"103,250"
Department for Education,TEACHING AGENCY,05/09/2012,Grants,Funding Allocation and Performance Division,BILLERICAY EDUCATIONAL CONSORTIUM,Public Sector,Grants to third sector organisations / not for profit organisations,4000094236,"101,933"
Department for Education,TEACHING AGENCY,05/09/2012,Grants,Funding Allocation and Performance Division,SOUTH WEST TEACHER TRAINING,Public Sector,Grants to third sector organisations / not for profit organisations,4000094351,"99,358"
Department for Education,TEACHING AGENCY,05/09/2012,Grants,Funding Allocation and Performance Division,SOMERSET COUNTY COUNCIL,Public Sector,Grants to third sector organisations / not for profit organisations,4000094349,"99,251"
Department for Education,TEACHING AGENCY,05/09/2012,Grants,Funding Allocation and Performance Division,BROMLEY SCHOOLS COLLEGIATE,Public Sector,Grants to third sector organisations / not for profit organisations,4000094244,"96,251"
Department for Education,DEPARTMENT FOR EDUCATION,05/09/2012,Grants,Free School Group,DURHAM FREE SCHOOL LTD,Commercial,"Grants paid to organisations including agencies, arms length bodies and educational establishments",1000726,"90,000"
Department for Education,TEACHING AGENCY,05/09/2012,Grants,Funding Allocation and Performance Division,EDUCATION MANAGEMENT DIRECT LTD,Commercial,Grants to third sector organisations / not for profit organisations,4000094271,"96,060"
Department for Education,DEPARTMENT FOR EDUCATION,05/09/2012,Grants,Free School Group,THE LONDON RIVERSIDE SCHOOL,Public Sector,"Grants paid to organisations including agencies, arms length bodies and educational establishments",1000727,"90,000"
Department for Education,TEACHING AGENCY,05/09/2012,Grants,Funding Allocation and Performance Division,UNIVERSITY OF EAST LONDON,Public Sector,Grants to third sector organisations / not for profit organisations,4000094395,"92,757"
Department for Education,TEACHING AGENCY,05/09/2012,Grants,Funding Allocation and Performance Division,COLCHESTER SCHOOLS SCITT CONSORTIUM,Public Sector,Grants to third sector organisations / not for profit organisations,4000094252,"89,105"
Department for Education,TEACHING AGENCY,05/09/2012,Grants,Funding Allocation and Performance Division,NORTH BEDS SCITT CONSORTIUM,Public Sector,Grants to third sector organisations / not for profit organisations,4000094325,"87,243"
Department for Education,TEACHING AGENCY,05/09/2012,Grants,Funding Allocation and Performance Division,THE UNIVERSITY OF READING,Public Sector,Grants to third sector organisations / not for profit organisations,4000094378,"83,955"
Department for Education,TEACHING AGENCY,05/09/2012,Grants,Funding Allocation and Performance Division,BOURNEMOUTH POOLE & DORSET EAST SECONDARY,Public Sector,Grants to third sector organisations / not for profit organisations,4000094241,"83,779"
Department for Education,TEACHING AGENCY,05/09/2012,Grants,Funding Allocation and Performance Division,LONDON NORTH CONSORTIUM MIDDLESEX UNIVERSITY,Public Sector,Grants to third sector organisations / not for profit organisations,4000094306,"83,484"
Department for Education,TEACHING AGENCY,05/09/2012,Grants,Quality and Priorities Division,NORTHUMBRIA DT PARTNERSHIP,VCS,Grants to third sector organisations / not for profit organisations,4000094332,"80,500"
Department for Education,TEACHING AGENCY,05/09/2012,Programme costs,Funding Allocation and Performance Division,LONDON BOROUGH OF WANDSWORTH COUNCIL,Public Sector,Funding to deliver policies (excluding consultancy) paid to third parties via a service delivery contract,4000094499,"78,973"
Department for Education,TEACHING AGENCY,05/09/2012,Grants,Funding Allocation and Performance Division,MANCHESTER METROPOLITAN UNIVERSITY,Public Sector,Grants to third sector organisations / not for profit organisations,4000094313,"78,000"
Department for Education,TEACHING AGENCY,05/09/2012,Grants,Funding Allocation and Performance Division,THE WEST LONDON GRADUATE TEACHER,VCS,Grants to third sector organisations / not for profit organisations,4000094379,"77,976"
Department for Education,TEACHING AGENCY,05/09/2012,Grants,Funding Allocation and Performance Division,LEEDS CITY COUNCIL,Public Sector,Grants to third sector organisations / not for profit organisations,4000094298,"74,438"
Department for Education,TEACHING AGENCY,05/09/2012,Grants,Funding Allocation and Performance Division,TITAN PARTNERSHIP,Public Sector,Grants to third sector organisations / not for profit organisations,4000094380,"71,838"
Department for Education,DEPARTMENT FOR EDUCATION,05/09/2012,Grants,Supporting Children and Young People Group,OFFICE OF THE CHILDRENS COMMISSIONER,Central Government,Current grant funding to arms length bodies for DfE's contribution to fund activity,2000650,"75,000"
Department for Education,TEACHING AGENCY,05/09/2012,Grants,Funding Allocation and Performance Division,CARMEL TEACHER TRAINING PARTNERSHIP,Public Sector,Grants to third sector organisations / not for profit organisations,4000094249,"71,779"
Department for Education,TEACHING AGENCY,05/09/2012,Grants,Funding Allocation and Performance Division,UNIVERSITY OF WOLVERHAMPTON,Public Sector,Grants to third sector organisations / not for profit organisations,4000094418,"71,300"
Department for Education,TEACHING AGENCY,05/09/2012,Grants,Funding Allocation and Performance Division,THAMES PRIMARY CONSORTIUM,Public Sector,Grants to third sector organisations / not for profit organisations,4000094363,"71,012"
Department for Education,TEACHING AGENCY,05/09/2012,Grants,Funding Allocation and Performance Division,CANTERBURY CHRIST CHURCH UNIVERSITY,Public Sector,Grants to third sector organisations / not for profit organisations,4000094248,"68,115"
Department for Education,TEACHING AGENCY,05/09/2012,Grants,Funding Allocation and Performance Division,ESSEX COUNTY COUNCIL,Public Sector,Grants to third sector organisations / not for profit organisations,4000094273,"65,748"
Department for Education,TEACHING AGENCY,05/09/2012,Grants,Funding Allocation and Performance Division,MID ESSEX CONSORTIUM,Public Sector,Grants to third sector organisations / not for profit organisations,4000094317,"64,762"
Department for Education,TEACHING AGENCY,05/09/2012,Grants,Funding Allocation and Performance Division,KEELE UNIVERSITY,Public Sector,Grants to third sector organisations / not for profit organisations,4000094289,"60,159"
Department for Education,TEACHING AGENCY,05/09/2012,Grants,Funding Allocation and Performance Division,LONDON SOUTH BANK UNIVERSITY,Public Sector,Grants to third sector organisations / not for profit organisations,4000094307,"60,022"
Department for Education,TEACHING AGENCY,05/09/2012,Grants,Funding Allocation and Performance Division,LONDON DIOCESAN BOARD FOR SCHOOLS,Public Sector,Grants to third sector organisations / not for profit organisations,4000094304,"58,845"
Department for Education,TEACHING AGENCY,05/09/2012,Grants,Funding Allocation and Performance Division,UNIVERSITY OF HERTFORDSHIRE,Public Sector,Grants to third sector organisations / not for profit organisations,4000094399,"58,150"
Department for Education,TEACHING AGENCY,05/09/2012,Grants,Funding Allocation and Performance Division,NEWMAN COLLEGE,Public Sector,Grants to third sector organisations / not for profit organisations,4000094323,"58,140"
Department for Education,TEACHING AGENCY,05/09/2012,Grants,Funding Allocation and Performance Division,NORTHAMPTON TEACHER TRAINING,Public Sector,Grants to third sector organisations / not for profit organisations,4000094331,"57,097"
Department for Education,TEACHING AGENCY,05/09/2012,Grants,Funding Allocation and Performance Division,UNIVERSITY OF HULL,Public Sector,Grants to third sector organisations / not for profit organisations,4000094401,"56,695"
Department for Education,TEACHING AGENCY,05/09/2012,Grants,Funding Allocation and Performance Division,PORTSMOUTH CITY COUNCIL,Public Sector,Grants to third sector organisations / not for profit organisations,4000094342,"56,692"
Department for Education,TEACHING AGENCY,05/09/2012,Grants,Funding Allocation and Performance Division,ESSEX PRY SCHOOLS TRAINING GROUP,Public Sector,Grants to third sector organisations / not for profit organisations,4000094274,"54,450"
Department for Education,TEACHING AGENCY,05/09/2012,Grants,Funding Allocation and Performance Division,LONDON BOROUGH OF ISLINGTON COUNCIL,Public Sector,Grants to third sector organisations / not for profit organisations,4000094496,"53,675"
Department for Education,TEACHING AGENCY,05/09/2012,Grants,Funding Allocation and Performance Division,GATESHEAD LEA,Public Sector,Grants to third sector organisations / not for profit organisations,4000094276,"53,345"
Department for Education,TEACHING AGENCY,05/09/2012,Grants,Funding Allocation and Performance Division,UNIVERSITY OF PLYMOUTH,Public Sector,Grants to third sector organisations / not for profit organisations,4000094407,"52,108"
Department for Education,TEACHING AGENCY,05/09/2012,Grants,Funding Allocation and Performance Division,SHEFFIELD HALLAM UNIVERSITY,Public Sector,Grants to third sector organisations / not for profit organisations,4000094348,"52,024"
Department for Education,TEACHING AGENCY,05/09/2012,Grants,Funding Allocation and Performance Division,EQUALITAS PROFESSIONAL SERVICES LTD,Commercial,Grants to third sector organisations / not for profit organisations,4000094272,"51,425"
Department for Education,TEACHING AGENCY,05/09/2012,Grants,Funding Allocation and Performance Division,CORNWALL COUNCIL,Public Sector,Grants to third sector organisations / not for profit organisations,4000094255,"50,759"
Department for Education,TEACHING AGENCY,05/09/2012,Grants,Funding Allocation and Performance Division,BRUNEL UNIVERSITY,Public Sector,Grants to third sector organisations / not for profit organisations,4000094245,"50,416"
Department for Education,TEACHING AGENCY,05/09/2012,Grants,Funding Allocation and Performance Division,HIGH FORCE EDUCATION,Public Sector,Grants to third sector organisations / not for profit organisations,4000094285,"49,543"
Department for Education,TEACHING AGENCY,05/09/2012,Grants,Funding Allocation and Performance Division,UNIVERSITY OF WOLVERHAMPTON,Public Sector,Grants to third sector organisations / not for profit organisations,4000094418,"49,319"
Department for Education,TEACHING AGENCY,05/09/2012,Grants,Funding Allocation and Performance Division,NOTTINGHAM TRENT UNIVERSITY,Public Sector,Grants to third sector organisations / not for profit organisations,4000094334,"49,015"
Department for Education,TEACHING AGENCY,05/09/2012,Grants,Funding Allocation and Performance Division,EAST MIDLANDS PARTNERSHIP,VCS,Grants to third sector organisations / not for profit organisations,4000094266,"48,653"
Department for Education,TEACHING AGENCY,05/09/2012,Grants,Funding Allocation and Performance Division,SCITTELS,Public Sector,Grants to third sector organisations / not for profit organisations,4000094346,"46,726"
Department for Education,TEACHING AGENCY,05/09/2012,Grants,Funding Allocation and Performance Division,MANCHESTER METROPOLITAN UNIVERSITY,Public Sector,Grants to third sector organisations / not for profit organisations,4000094313,"46,442"
Department for Education,TEACHING AGENCY,05/09/2012,Grants,Funding Allocation and Performance Division,NORTH ESSEX TEACHER TRAINING,VCS,Grants to third sector organisations / not for profit organisations,4000094328,"46,204"
Department for Education,TEACHING AGENCY,05/09/2012,Grants,Funding Allocation and Performance Division,THE UNIVERSITY OF READING,Public Sector,Grants to third sector organisations / not for profit organisations,4000094378,"46,092"
Department for Education,TEACHING AGENCY,05/09/2012,Grants,Funding Allocation and Performance Division,EAST LINCOLNSHIRE DRB,Public Sector,Grants to third sector organisations / not for profit organisations,4000094265,"46,023"
Department for Education,TEACHING AGENCY,05/09/2012,Grants,Funding Allocation and Performance Division,NORTHUMBRIA DT PARTNERSHIP,VCS,Grants to third sector organisations / not for profit organisations,4000094332,"45,747"
Department for Education,TEACHING AGENCY,05/09/2012,Grants,Funding Allocation and Performance Division,LSJS SCITT,Public Sector,Grants to third sector organisations / not for profit organisations,4000094311,"45,540"
Department for Education,TEACHING AGENCY,05/09/2012,Grants,Funding Allocation and Performance Division,SUFFOLK COUNTY COUNCIL,Public Sector,Grants to third sector organisations / not for profit organisations,4000094359,"44,979"
Department for Education,TEACHING AGENCY,05/09/2012,Grants,Funding Allocation and Performance Division,PILGRIM SCITT,Public Sector,Grants to third sector organisations / not for profit organisations,4000094339,"44,977"
Department for Education,TEACHING AGENCY,05/09/2012,Grants,Funding Allocation and Performance Division,NORTH EAST PARTNERSHIP,Public Sector,Grants to third sector organisations / not for profit organisations,4000094327,"44,550"
Department for Education,TEACHING AGENCY,05/09/2012,Grants,Funding Allocation and Performance Division,PORTSMOUTH CITY COUNCIL,Public Sector,Grants to third sector organisations / not for profit organisations,4000094525,"44,334"
Department for Education,TEACHING AGENCY,05/09/2012,Grants,Funding Allocation and Performance Division,UNIVERSITY OF SOUTHAMPTON,Public Sector,Grants to third sector organisations / not for profit organisations,4000094412,"43,960"
Department for Education,TEACHING AGENCY,05/09/2012,Grants,Funding Allocation and Performance Division,NOTTINGHAM TRENT UNIVERSITY,Public Sector,Grants to third sector organisations / not for profit organisations,4000094334,"43,768"
Department for Education,TEACHING AGENCY,05/09/2012,Grants,Funding Allocation and Performance Division,INSTITUTE OF EDUCATION U.O.L.,Public Sector,Grants to third sector organisations / not for profit organisations,4000094287,"43,652"
Department for Education,TEACHING AGENCY,05/09/2012,Grants,Funding Allocation and Performance Division,LONDON METROPOLITAN UNIVERSITY,Public Sector,Grants to third sector organisations / not for profit organisations,4000094305,"43,469"
Department for Education,TEACHING AGENCY,05/09/2012,Grants,Funding Allocation and Performance Division,LEICESTER & LEICESTERSHIRE SCI,Public Sector,Grants to third sector organisations / not for profit organisations,4000094301,"42,411"
Department for Education,TEACHING AGENCY,05/09/2012,Grants,Funding Allocation and Performance Division,LONDON METROPOLITAN UNIVERSITY,Public Sector,Grants to third sector organisations / not for profit organisations,4000094305,"42,334"
Department for Education,TEACHING AGENCY,05/09/2012,Grants,Funding Allocation and Performance Division,CALLINGTON COMMUNITY COLLEGE,Public Sector,Grants to third sector organisations / not for profit organisations,4000094247,"42,240"
Department for Education,TEACHING AGENCY,05/09/2012,Grants,Funding Allocation and Performance Division,THE COLLEGE OF ST MARK & ST JOHN,Public Sector,Grants to third sector organisations / not for profit organisations,4000094367,"41,765"
Department for Education,TEACHING AGENCY,05/09/2012,Grants,Funding Allocation and Performance Division,NORTH TYNESIDE,Public Sector,Grants to third sector organisations / not for profit organisations,4000094330,"40,840"
Department for Education,TEACHING AGENCY,05/09/2012,Grants,Funding Allocation and Performance Division,UNIVERSITY OF CHESTER,Public Sector,Grants to third sector organisations / not for profit organisations,4000094389,"40,382"
Department for Education,TEACHING AGENCY,05/09/2012,Grants,Funding Allocation and Performance Division,GLOUCESTERSHIRE INITIAL TEP,Public Sector,Grants to third sector organisations / not for profit organisations,4000094279,"39,427"
Department for Education,TEACHING AGENCY,05/09/2012,Grants,Funding Allocation and Performance Division,UNIVERSITY OF HERTFORDSHIRE,Public Sector,Grants to third sector organisations / not for profit organisations,4000094399,"39,240"
Department for Education,TEACHING AGENCY,05/09/2012,Grants,Funding Allocation and Performance Division,SOUTH COAST SCITT,Public Sector,Grants to third sector organisations / not for profit organisations,4000094350,"39,209"
Department for Education,TEACHING AGENCY,05/09/2012,Grants,Funding Allocation and Performance Division,NORTH EAST CONSORTIUM DURHAM,Public Sector,Grants to third sector organisations / not for profit organisations,4000094326,"39,000"
Department for Education,TEACHING AGENCY,05/09/2012,Grants,Funding Allocation and Performance Division,SURREY COUNTY COUNCIL,Public Sector,Grants to third sector organisations / not for profit organisations,4000094543,"38,710"
Department for Education,TEACHING AGENCY,05/09/2012,Grants,Funding Allocation and Performance Division,ROYAL ACADEMY OF DANCE,Public Sector,Grants to third sector organisations / not for profit organisations,4000094345,"38,610"
Department for Education,TEACHING AGENCY,05/09/2012,Grants,Funding Allocation and Performance Division,UNIVERSITY OF WORCESTER,Public Sector,Grants to third sector organisations / not for profit organisations,4000094419,"38,437"
Department for Education,TEACHING AGENCY,05/09/2012,Grants,Funding Allocation and Performance Division,UNIVERSITY OF SUNDERLAND,Public Sector,Grants to third sector organisations / not for profit organisations,4000094413,"38,162"
Department for Education,TEACHING AGENCY,05/09/2012,Grants,Funding Allocation and Performance Division,LONDON BOROUGH OF BARKING & DAGENHAM COUNCIL,Public Sector,Grants to third sector organisations / not for profit organisations,4000094493,"36,491"
Department for Education,TEACHING AGENCY,05/09/2012,Grants,Funding Allocation and Performance Division,WANDSWORTH PRIMARY SCHOOLS CONSORTIUM,Public Sector,Grants to third sector organisations / not for profit organisations,4000094421,"36,333"
Department for Education,TEACHING AGENCY,05/09/2012,Grants,Funding Allocation and Performance Division,POOLE BOROUGH COUNCIL,Public Sector,Grants to third sector organisations / not for profit organisations,4000094340,"35,944"
Department for Education,TEACHING AGENCY,05/09/2012,Grants,Funding Allocation and Performance Division,TENDRING HUNDRES PRIMARY SCHOOL,Public Sector,Grants to third sector organisations / not for profit organisations,4000094362,"34,885"
Department for Education,DEPARTMENT FOR EDUCATION,05/09/2012,Programme costs,Children Young People and Families Safeguarding Group,CAPGEMINI UK PLC,Commercial,Funding to deliver policies (excluding consultancy) paid to third parties via a service delivery contract,4000094448,"60,565"
Department for Education,TEACHING AGENCY,05/09/2012,Grants,Funding Allocation and Performance Division,BIRMINGHAM PRIMARY TRAINING PA,Public Sector,Grants to third sector organisations / not for profit organisations,4000094239,"34,320"
Department for Education,DEPARTMENT FOR EDUCATION,05/09/2012,Grants,Children Young People and Families Supporting Delivery Group,CHILDREN ENGLAND,VCS,Grants to third sector organisations / not for profit organisations,4000094449,"59,171"
Department for Education,TEACHING AGENCY,05/09/2012,Grants,Funding Allocation and Performance Division,THE COLLEGE OF ST MARK & ST JOHN,Public Sector,Grants to third sector organisations / not for profit organisations,4000094367,"34,320"
Department for Education,TEACHING AGENCY,05/09/2012,Grants,Funding Allocation and Performance Division,FOREST INDEPENDENT PRIMARY COLLEGIATE,Public Sector,Grants to third sector organisations / not for profit organisations,4000094275,"33,990"
Department for Education,TEACHING AGENCY,05/09/2012,Grants,Funding Allocation and Performance Division,EAST RIDING OF YORKSHIRE COUNCIL,Public Sector,Grants to third sector organisations / not for profit organisations,4000094461,"33,885"
Department for Education,TEACHING AGENCY,05/09/2012,Grants,Funding Allocation and Performance Division,PRIMARY CATHOLIC PARTNERSHIP,Public Sector,Grants to third sector organisations / not for profit organisations,4000094343,"33,746"
Department for Education,TEACHING AGENCY,05/09/2012,Grants,Funding Allocation and Performance Division,UNIVERSITY OF SUSSEX,Public Sector,Grants to third sector organisations / not for profit organisations,4000094414,"33,660"
Department for Education,TEACHING AGENCY,05/09/2012,Grants,Funding Allocation and Performance Division,THE OPEN UNIVERSITY,Public Sector,Grants to third sector organisations / not for profit organisations,4000094370,"33,540"
Department for Education,TEACHING AGENCY,05/09/2012,Grants,Funding Allocation and Performance Division,UNIVERSITY OF BRIGHTON,Public Sector,Grants to third sector organisations / not for profit organisations,4000094386,"33,404"
Department for Education,TEACHING AGENCY,05/09/2012,Grants,Funding Allocation and Performance Division,SUFFOLK COUNTY COUNCIL,Public Sector,Grants to third sector organisations / not for profit organisations,4000094542,"33,330"
Department for Education,DEPARTMENT FOR EDUCATION,05/09/2012,Grants,Academies Delivery Group,THOMAS FERENS ACADEMY,Public Sector,"Grants paid to organisations including agencies, arms length bodies and educational establishments",4000094545,"46,523"
Department for Education,TEACHING AGENCY,05/09/2012,Grants,Funding Allocation and Performance Division,ST MARYS COLLEGE,Public Sector,Grants to third sector organisations / not for profit organisations,4000094354,"33,326"
Department for Education,TEACHING AGENCY,05/09/2012,Grants,Funding Allocation and Performance Division,LEEDS TRINITY UNIVERSITY COLLEGE,Public Sector,Grants to third sector organisations / not for profit organisations,4000094300,"33,190"
Department for Education,TEACHING AGENCY,05/09/2012,Grants,Funding Allocation and Performance Division,LANCASHIRE CONSORTIUM,Public Sector,Grants to third sector organisations / not for profit organisations,4000094295,"32,874"
Department for Education,DEPARTMENT FOR EDUCATION,05/09/2012,Professional Services Other,Teachers Group,NATIONAL AUDIT OFFICE,Public Sector,Financial audit services relating to fomer non-departmental public bodies,2000649,"32,000"
Department for Education,DEPARTMENT FOR EDUCATION,05/09/2012,Travel,Finance and Commercial Group,REDFERN TRAVEL LTD,Commercial,"Staff business travel including air, coach, ferry, rail and taxi",4000094530,"30,907"
Department for Education,TEACHING AGENCY,05/09/2012,Grants,Funding Allocation and Performance Division,MARCHES CONSORTIUM SCITT,Public Sector,Grants to third sector organisations / not for profit organisations,4000094314,"32,723"
Department for Education,DEPARTMENT FOR EDUCATION,05/09/2012,Programme costs,Academies Delivery Group,MOUCHEL MANAGEMENT CONSULTING LTD,Commercial,Funding to deliver policies (excluding consultancy) paid to third parties via a service delivery contract,4000094511,"26,624"
Department for Education,STANDARDS AND TESTING AGENCY,05/09/2012,Travel,Test Development Division,REDFERN TRAVEL LTD,Commercial,"Staff business travel including air, coach, ferry, rail and taxi",4000094530,"4,167"
Department for Education,TEACHING AGENCY,05/09/2012,Grants,Funding Allocation and Performance Division,INSTITUTE OF EDUCATION U.O.L.,Public Sector,Grants to third sector organisations / not for profit organisations,4000094287,"31,658"
Department for Education,STANDARDS AND TESTING AGENCY,05/09/2012,Travel,Key Stage Exam Group,REDFERN TRAVEL LTD,Commercial,"Staff business travel including air, coach, ferry, rail and taxi",4000094530,"3,938"
Department for Education,TEACHING AGENCY,05/09/2012,Grants,Funding Allocation and Performance Division,UNIVERSITY OF HUDDERSFIELD,Public Sector,Grants to third sector organisations / not for profit organisations,4000094400,"31,212"
Department for Education,TEACHING AGENCY,05/09/2012,Grants,Funding Allocation and Performance Division,GREENWICH COUNCIL,Public Sector,Grants to third sector organisations / not for profit organisations,4000094464,"31,075"
Department for Education,TEACHING AGENCY,05/09/2012,Grants,Funding Allocation and Performance Division,PLYMOUTH CITY COUNCIL,Public Sector,Grants to third sector organisations / not for profit organisations,4000094523,"30,481"
Department for Education,STANDARDS AND TESTING AGENCY,05/09/2012,Travel,Test Development Division,REDFERN TRAVEL LTD,Commercial,"Staff business travel including air, coach, ferry, rail and taxi",4000094530,"3,823"
Department for Education,DEPARTMENT FOR EDUCATION,05/09/2012,Travel,People and Change,REDFERN TRAVEL LTD,Commercial,"Staff business travel including air, coach, ferry, rail and taxi",4000094530,"13,942"
Department for Education,DEPARTMENT FOR EDUCATION,05/09/2012,Travel,Children Young People and Families Safeguarding Group,REDFERN TRAVEL LTD,Commercial,"Staff business travel including air, coach, ferry, rail and taxi",4000094530,"12,333"
Department for Education,TEACHING AGENCY,05/09/2012,Grants,Funding Allocation and Performance Division,UNIVERSITY COLLEGE CHICHESTER,Public Sector,Grants to third sector organisations / not for profit organisations,4000094382,"30,302"
Department for Education,TEACHING AGENCY,05/09/2012,Grants,Funding Allocation and Performance Division,GOLDSMITH COLLEGE,Public Sector,Grants to third sector organisations / not for profit organisations,4000094281,"30,192"
Department for Education,TEACHING AGENCY,05/09/2012,Grants,Funding Allocation and Performance Division,THE COLLEGE OF ST MARK & ST JOHN,Public Sector,Grants to third sector organisations / not for profit organisations,4000094367,"29,334"
Department for Education,STANDARDS AND TESTING AGENCY,05/09/2012,Travel,Test Development Division,REDFERN TRAVEL LTD,Commercial,"Staff business travel including air, coach, ferry, rail and taxi",4000094530,"3,271"
Department for Education,NATIONAL COLLEGE FOR SCHOOL LEADERSHIP AGENCY,05/09/2012,Travel,System Leadership Directorate,REDFERN TRAVEL LTD,Commercial,"Staff business travel including air, coach, ferry, rail and taxi",4000094530,"7,624"
Department for Education,DEPARTMENT FOR EDUCATION,05/09/2012,Travel,"Strategic Analysis, Research and Policy Impact Group",REDFERN TRAVEL LTD,Commercial,"Staff business travel including air, coach, ferry, rail and taxi",4000094530,"9,233"
Department for Education,DEPARTMENT FOR EDUCATION,05/09/2012,Travel,Finance and Commercial Group,REDFERN TRAVEL LTD,Commercial,"Staff business travel including air, coach, ferry, rail and taxi",4000094530,"7,464"
Department for Education,TEACHING AGENCY,05/09/2012,Grants,Funding Allocation and Performance Division,UNIVERSITY OF WARWICK,Public Sector,Grants to third sector organisations / not for profit organisations,4000094416,"27,885"
Department for Education,TEACHING AGENCY,05/09/2012,Grants,Funding Allocation and Performance Division,NOTTINGHAM PRIMARY SCITT,Public Sector,Grants to third sector organisations / not for profit organisations,4000094333,"27,720"
Department for Education,TEACHING AGENCY,05/09/2012,Grants,Funding Allocation and Performance Division,UNIVERSITY OF SOUTHAMPTON,Public Sector,Grants to third sector organisations / not for profit organisations,4000094412,"27,540"
Department for Education,TEACHING AGENCY,05/09/2012,Grants,Funding Allocation and Performance Division,SOUTHEND TEACHER TRAINING PARTNERSHIP,VCS,Grants to third sector organisations / not for profit organisations,4000094352,"27,289"
Department for Education,TEACHING AGENCY,05/09/2012,Grants,Funding Allocation and Performance Division,SURREY COUNTY COUNCIL,Public Sector,Grants to third sector organisations / not for profit organisations,4000094360,"26,463"
Department for Education,DEPARTMENT FOR EDUCATION,05/09/2012,Travel,Communications Group,REDFERN TRAVEL LTD,Commercial,"Staff business travel including air, coach, ferry, rail and taxi",4000094530,"6,123"
Department for Education,DEPARTMENT FOR EDUCATION,05/09/2012,Travel,Academies Delivery Group,REDFERN TRAVEL LTD,Commercial,"Staff business travel including air, coach, ferry, rail and taxi",4000094530,"5,654"
Department for Education,TEACHING AGENCY,05/09/2012,Grants,Funding Allocation and Performance Division,UNIVERSITY OF SOUTHAMPTON,Public Sector,Grants to third sector organisations / not for profit organisations,4000094412,"26,299"
Department for Education,DEPARTMENT FOR EDUCATION,05/09/2012,Travel,System Reform Group,REDFERN TRAVEL LTD,Commercial,"Staff business travel including air, coach, ferry, rail and taxi",4000094530,"5,392"
Department for Education,TEACHING AGENCY,05/09/2012,Grants,Funding Allocation and Performance Division,UNIVERSITY OF EAST LONDON,Public Sector,Grants to third sector organisations / not for profit organisations,4000094395,"26,191"
Department for Education,TEACHING AGENCY,05/09/2012,Grants,Funding Allocation and Performance Division,DORSET COUNTY COUNCIL,Public Sector,Grants to third sector organisations / not for profit organisations,4000094261,"26,070"
Department for Education,TEACHING AGENCY,05/09/2012,Grants,Funding Allocation and Performance Division,UNIVERSITY OF BRIGHTON,Public Sector,Grants to third sector organisations / not for profit organisations,4000094386,"25,793"
Department for Education,TEACHING AGENCY,05/09/2012,Grants,Funding Allocation and Performance Division,THE SHIRE FOUNDATION EBITT,VCS,Grants to third sector organisations / not for profit organisations,4000094373,"25,288"
Department for Education,DEPARTMENT FOR EDUCATION,05/09/2012,Travel,Curriculum and General Qualifications Reform Group,REDFERN TRAVEL LTD,Commercial,"Staff business travel including air, coach, ferry, rail and taxi",4000094530,"4,925"
Department for Education,TEACHING AGENCY,05/09/2012,Grants,Funding Allocation and Performance Division,YORKSHIRE & DERBYSHIRE TRAIN,VCS,Grants to third sector organisations / not for profit organisations,4000094425,"25,212"
Department for Education,TEACHING AGENCY,05/09/2012,Grants,Funding Allocation and Performance Division,NEWMAN COLLEGE,Public Sector,Grants to third sector organisations / not for profit organisations,4000094323,"24,980"
Department for Education,TEACHING AGENCY,05/09/2012,Grants,Funding Allocation and Performance Division,UNIVERSITY OF DERBY,Public Sector,Grants to third sector organisations / not for profit organisations,4000094392,"23,770"
Department for Education,TEACHING AGENCY,05/09/2012,Grants,Funding Allocation and Performance Division,UNIVERSITY OF CUMBRIA,Public Sector,Grants to third sector organisations / not for profit organisations,4000094391,"23,616"
Department for Education,DEPARTMENT FOR EDUCATION,05/09/2012,Travel,Families Group,REDFERN TRAVEL LTD,Commercial,"Staff business travel including air, coach, ferry, rail and taxi",4000094530,"4,539"
Department for Education,DEPARTMENT FOR EDUCATION,05/09/2012,Travel,Academies Delivery Group,REDFERN TRAVEL LTD,Commercial,"Staff business travel including air, coach, ferry, rail and taxi",4000094530,"4,320"
Department for Education,DEPARTMENT FOR EDUCATION,05/09/2012,Travel,System Reform Group,REDFERN TRAVEL LTD,Commercial,"Staff business travel including air, coach, ferry, rail and taxi",4000094530,"4,297"
Department for Education,NATIONAL COLLEGE FOR SCHOOL LEADERSHIP AGENCY,05/09/2012,Travel,Design and Development Directorate,REDFERN TRAVEL LTD,Commercial,"Staff business travel including air, coach, ferry, rail and taxi",4000094530,"4,785"
Department for Education,DEPARTMENT FOR EDUCATION,05/09/2012,Travel,Academies Delivery Group,REDFERN TRAVEL LTD,Commercial,"Staff business travel including air, coach, ferry, rail and taxi",4000094530,"4,130"
Department for Education,DEPARTMENT FOR EDUCATION,05/09/2012,Travel,Academies Delivery Group,REDFERN TRAVEL LTD,Commercial,"Staff business travel including air, coach, ferry, rail and taxi",4000094530,"4,015"
Department for Education,DEPARTMENT FOR EDUCATION,05/09/2012,Travel,Chief Information Officer Group,REDFERN TRAVEL LTD,Commercial,"Staff business travel including air, coach, ferry, rail and taxi",4000094530,"3,978"
Department for Education,DEPARTMENT FOR EDUCATION,05/09/2012,Travel,Free School Group,REDFERN TRAVEL LTD,Commercial,"Staff business travel including air, coach, ferry, rail and taxi",4000094530,"3,851"
Department for Education,DEPARTMENT FOR EDUCATION,05/09/2012,Travel,Children Young People and Families Early Years Extended Schools and Special Needs Group,REDFERN TRAVEL LTD,Commercial,"Staff business travel including air, coach, ferry, rail and taxi",4000094530,"3,579"
Department for Education,DEPARTMENT FOR EDUCATION,05/09/2012,Travel,"Strategic Analysis, Research and Policy Impact Group",REDFERN TRAVEL LTD,Commercial,"Staff business travel including air, coach, ferry, rail and taxi",4000094530,"3,482"
Department for Education,DEPARTMENT FOR EDUCATION,05/09/2012,Travel,Communications Group,REDFERN TRAVEL LTD,Commercial,"Staff business travel including air, coach, ferry, rail and taxi",4000094530,"3,467"
Department for Education,DEPARTMENT FOR EDUCATION,05/09/2012,Travel,School Standards Group,REDFERN TRAVEL LTD,Commercial,"Staff business travel including air, coach, ferry, rail and taxi",4000094530,"3,419"
Department for Education,DEPARTMENT FOR EDUCATION,05/09/2012,Travel,Chief Information Officer Group,REDFERN TRAVEL LTD,Commercial,"Staff business travel including air, coach, ferry, rail and taxi",4000094530,"3,290"
Department for Education,DEPARTMENT FOR EDUCATION,05/09/2012,Travel,Children Young People and Families Early Years Extended Schools and Special Needs Group,REDFERN TRAVEL LTD,Commercial,"Staff business travel including air, coach, ferry, rail and taxi",4000094530,"3,260"
Department for Education,DEPARTMENT FOR EDUCATION,05/09/2012,Travel,Children Young People and Families Supporting Delivery Group,REDFERN TRAVEL LTD,Commercial,"Staff business travel including air, coach, ferry, rail and taxi",4000094530,"3,123"
Department for Education,DEPARTMENT FOR EDUCATION,05/09/2012,Travel,Participation and Vocational Education Group,REDFERN TRAVEL LTD,Commercial,"Staff business travel including air, coach, ferry, rail and taxi",4000094530,"2,916"
Department for Education,DEPARTMENT FOR EDUCATION,05/09/2012,Travel,Free School Group,REDFERN TRAVEL LTD,Commercial,"Staff business travel including air, coach, ferry, rail and taxi",4000094530,"2,888"
Department for Education,DEPARTMENT FOR EDUCATION,05/09/2012,Travel,System Reform Group,REDFERN TRAVEL LTD,Commercial,"Staff business travel including air, coach, ferry, rail and taxi",4000094530,"2,873"
Department for Education,DEPARTMENT FOR EDUCATION,05/09/2012,Travel,Chief Information Officer Group,REDFERN TRAVEL LTD,Commercial,"Staff business travel including air, coach, ferry, rail and taxi",4000094530,"2,863"
Department for Education,TEACHING AGENCY,05/09/2012,Grants,Funding Allocation and Performance Division,UNIVERSITY OF CHICHESTER,Public Sector,Grants to third sector organisations / not for profit organisations,4000094390,"22,789"
Department for Education,TEACHING AGENCY,05/09/2012,Grants,Funding Allocation and Performance Division,UNIVERSITY OF ROEHAMPTON,Public Sector,Grants to third sector organisations / not for profit organisations,4000094409,"22,425"
